Workbook

Sheet NOTES
A2: The model has actual and test data to illustrate the workings of the model. | D2: ='Model update'!B5 -> 2021
A4: Issue | B4: Location | C4: Item | D4: Comment
A6: 1 | B6: 'Model update'!B21 | C6: CPI | D6: ="Updated June "&D2-1&" CPI for "&D2 -> Updated June 2020 CPI for 2021 | E6: NOTE: This worksheet is programmed to update for each year - use as checklist and note any placeholders or changes
E7: NOTE: Worksheet names in this file are programmed to update each year once each worksheet is accessed and a cell is selected
A8: =A6+1 -> 2 | B8: 'Model update'!B36 | C8: ="Xt for "&D2 -> Xt for 2021 | D8: ="Updated for "&D2&" annual update " -> Updated for 2021 annual update
A10: =A8+1 -> 3 | B10: 'Model update'!B46 | C10: ="Pass Through Amount for "&D2 -> Pass Through Amount for 2021 | D10: NIL for 2020
A12: =A10+1 -> 4 | B12: 'Model update'!B58 | C12: Real Pre-tax WACC (rptw) | D12: ="Updated for "&$D$2&" annual update" -> Updated for 2021 annual update
A14: =A12+1 -> 5 | B14: ="Prop"&D2&"DistTar!E8:E165" -> Prop2021DistTar!E8:E165 | C14: =D2-1&" tariffs" -> 2020 tariffs | D14: ="Updated from "&D2-1&" model" -> Updated from 2020 model
A16: =A14+1 -> 6 | B16: ARS!B6:B14 | C16: =D2-1&" ARS tariffs" -> 2020 ARS tariffs | D16: ="Updated from "&D2-1&" model" -> Updated from 2020 model
A18: =A16+1 -> 7 | B18: The following is test data to illustrate the workings of the model. | D18: Input data required from DNSPs
B19: ="Prop"&D2&"DistTar!D8:D165" -> Prop2021DistTar!D8:D165 | C19: ="Proposed "&D2&" Tariffs" -> Proposed 2021 Tariffs
B20: ="Prop"&D2&"DistTar!F8:F165" -> Prop2021DistTar!F8:F165 | C20: ="Actual "&D2-2&" Volumes" -> Actual 2019 Volumes
B22: ARS!C6:C14 | C22: ="Proposed "&D2&" Ancillary Reference Services Charges" -> Proposed 2021 Ancillary Reference Services Charges | D22: Calculated using formula

Sheet Model update
A3: Tariff Approval Template for | B3: MultiNet
A5: Calendar year commencing | B5: 2021
A7: t | B7: =B5 -> 2021
A8: t-1 | B8: =B7-1 -> 2020
A9: t-2 | B9: 2019
A10: t-3 | B10: 2018
A13: Please fill in yellow highlighted cells where appropriate
A15: CPI
A17: CPI Index June 2016 | B17: 108.6
A18: CPI Index June 2017 | B18: 110.7
A19: CPI Index June 2018 | B19: 113
A20: CPI Index June 2019 | B20: 114.8
A21: CPI Index June 2020 | B21: 114.4
A22: CPI Index June 2021
A25: ="CPI Index June " &$B$10 -> CPI Index June 2018 | B25: =VLOOKUP(A25,A$17:D$22,2,FALSE) -> 113
A26: ="CPI Index June " &$B$9 -> CPI Index June 2019 | B26: =VLOOKUP(A26,A$17:D$22,2,FALSE) -> 114.8
A27: ="CPI Index June " &$B$8 -> CPI Index June 2020 | B27: =VLOOKUP(A27,A$17:D$22,2,FALSE) -> 114.4
A29: ="CPI " &$B$8 -> CPI 2020 | B29: =B26/B25-1 -> 0.01592920354
A30: ="CPI " &$B$5 -> CPI 2021 | B30: =B27/B26-1 -> -0.003484320557
A33: ="Xt for "&B$5 -> Xt for 2021
A34: 2019 | B34: -0.01775734485
A35: 2020 | B35: -0.01173652192
A36: 2021 | B36: -0.009559692326
A37: 2022 | B37: -0.018
A40: ="Xt for "&B$5 -> Xt for 2021 | B40: =VLOOKUP(B5,A34:B38,2,FALSE) -> -0.009559692326
A43: Pass Through Amounts : PT (t)
A44: 2019 | B44: 0
A45: 2020 | B45: 0
A46: 2021 | B46: 0
A47: 2022 | B47: 0
A50: ="Pass Through Amount for "&B$5 -> Pass Through Amount for 2021 | B50: =VLOOKUP(B5,A44:B48,2,FALSE) -> 0
A51: The Pass Through Amount is to include an amount that reflects the time value of money between incurring the costs and recovering the costs
A52: and excludes any amounts already passed through in reference tariffs.
A55: Pre-tax real WACC for distribution tariffs
A58: Pretax real WACCD | B58: 0.03776885784

Sheet Prop2021DistTar
B1: ="Tariff Approval - "&'Model update'!B3 -> Tariff Approval - MultiNet | C1: ="Prop"&'Model update'!B5&"DistTar" -> Prop2021DistTar
B3: ="PROPOSED "&'Model update'!$B$5&" DISTRIBUTION TARIFFS" -> PROPOSED 2021 DISTRIBUTION TARIFFS
B5: Proposed tariff name | C5: Existing name | D5: Prop 2021 Tariff | E5: ="Exist "&'Model update'!$B$8&" Tariff" -> Exist 2020 Tariff | F5: Actual 2019 Volumes | G5: Prop Tar Revenue | H5: Exist Tar Revenue
B6: Tariff V - Multinet Residential | C6: Tariff V - Multinet Residential
B7: 1 January - 31 December | C7: 1 January - 31 December
B8: Fixed Charge | C8: Fixed Charge | D8: 0.183 | E8: 0.183 | F8: 683819 | G8: =D8*$F8*365 -> 45675690.1 | H8: =E8*$F8*365 -> 45675690.1
B9: Peak 0 - 0.05 | C9: Peak 0 - 0.05 | D9: 8.8806 | E9: 8.750296539 | F9: 3656357.659 | G9: =D9*$F9 -> 32470649.83 | H9: 31994213.77
B10: Peak 0.05 - 0.1 | C10: Peak 0.05 - 0.1 | D10: 5.8383 | E10: 5.8383 | F10: 3045063.953 | G10: 17777996.88 | H10: 17777996.88
B11: Peak 0.1 -0.15 | C11: Peak 0.1 -0.15 | D11: 3.0185 | E11: 3.0185 | F11: 2645466.095 | G11: 7985339.408 | H11: 7985339.408
B12: Peak 0.15 - 0.25 | C12: Peak 0.15 - 0.25 | D12: 1.5276 | E12: 1.5276 | F12: 4271305.688 | G12: 6524846.569 | H12: 6524846.569
B13: Peak >0.25 | C13: Peak >0.25 | D13: 1.1329 | E13: 1.1329 | F13: 7916490.729 | G13: 8968592.347 | H13: 8968592.347
B14: May Shoulder 0 - 0.05 | C14: May Shoulder 0 - 0.05 | D14: 8.476 | E14: 8.351549891 | F14: 910259.8255 | G14: 7715362.281 | H14: 7602080.346
B15: May Shoulder 0.05 - 0.1 | C15: May Shoulder 0.05 - 0.1 | D15: 5.5464 | E15: 5.5464 | F15: 709598.9296 | G15: 3935719.503 | H15: 3935719.503
B16: May Shoulder 0.1 -0.15 | C16: May Shoulder 0.1 -0.15 | D16: 2.8686 | E16: 2.8686 | F16: 564811.0287 | G16: 1620216.917 | H16: 1620216.917
B17: May Shoulder 0.15 - 0.25 | C17: May Shoulder 0.15 - 0.25 | D17: 1.4513 | E17: 1.4513 | F17: 787777.1575 | G17: 1143300.989 | H17: 1143300.989
B18: May Shoulder >0.25 | C18: May Shoulder >0.25 | D18: 1.0913 | E18: 1.0913 | F18: 1101432.544 | G18: 1201993.335 | H18: 1201993.335
B19: Oct Shoulder 0 - 0.05 | C19: Oct Shoulder 0 - 0.05 | D19: 8.476 | E19: 8.351549891 | F19: 898951.6776 | G19: 7619514.419 | H19: 7507639.785
B20: Oct Shoulder 0.05 - 0.1 | C20: Oct Shoulder 0.05 - 0.1 | D20: 5.5464 | E20: 5.5464 | F20: 656008.1364 | G20: 3638483.528 | H20: 3638483.528
B21: Oct Shoulder 0.1 -0.15 | C21: Oct Shoulder 0.1 -0.15 | D21: 2.8686 | E21: 2.8686 | F21: 466704.8574 | G21: 1338789.554 | H21: 1338789.554
B22: Oct Shoulder 0.15 - 0.25 | C22: Oct Shoulder 0.15 - 0.25 | D22: 1.4513 | E22: 1.4513 | F22: 536718.7704 | G22: 778939.9515 | H22: 778939.9515
B23: Oct Shoulder >0.25 | C23: Oct Shoulder >0.25 | D23: 1.0913 | E23: 1.0913 | F23: 547491.7996 | G23: 597477.8009 | H23: 597477.8009
B24: Off Peak 0 - 0.05 | C24: Off Peak 0 - 0.05 | D24: 7.5839 | E24: 7.472536888 | F24: 4531241.101 | G24: 34364479.39 | H24: 33859866.28
B25: Off Peak 0.05 - 0.1 | C25: Off Peak 0.05 - 0.1 | D25: 4.9627 | E25: 4.9627 | F25: 1955394.87 | G25: 9704038.121 | H25: 9704038.121
B26: Off Peak 0.1 -0.15 | C26: Off Peak 0.1 -0.15 | D26: 2.5666 | E26: 2.5666 | F26: 938386.8922 | G26: 2408463.798 | H26: 2408463.798
B27: Off Peak 0.15 - 0.25 | C27: Off Peak 0.15 - 0.25 | D27: 1.2985 | E27: 1.2985 | F27: 845215.1388 | G27: 1097511.858 | H27: 1097511.858
B28: Off Peak >0.25 | C28: Off Peak >0.25 | D28: 0.9766 | E28: 0.9766 | F28: 1162552.108 | G28: =D28*$F28 -> 1135348.389 | H28: =E28*$F28 -> 1135348.389
B29: Tariff V - Multinet Non-Residential | C29: Tariff V - Multinet Non-Residential
B30: 1 January - 31 December | C30: 1 January - 31 December
B31: Fixed Charge | C31: Fixed Charge | D31: 0.3018 | E31: 0.3018 | F31: 15954 | G31: =D31*$F31*365 -> 1757444.778 | H31: =E31*$F31*365 -> 1757444.778
B32: Peak 0 - 0.25 | C32: Peak 0 - 0.25 | D32: 4.0556 | E32: 3.99611251 | F32: 311065.4927 | G32: =D32*$F32 -> 1261557.212 | H32: 1243052.707
B33: Peak 0.25 - 1 | C33: Peak 0.25 - 1 | D33: 2.3486 | E33: 2.3486 | F33: 511137.5329 | G33: 1200457.61 | H33: 1200457.61
B34: Peak 1 - 1.5 | C34: Peak 1 - 1.5 | D34: 1.4092 | E34: 1.4092 | F34: 201892.0276 | G34: 284506.2453 | H34: 284506.2453
B35: Peak 1.5 - 5 | C35: Peak 1.5 - 5 | D35: 0.7842 | E35: 0.7842 | F35: 692403.0209 | G35: 542982.449 | H35: 542982.449
B36: Peak >5 | C36: Peak >5 | D36: 0.2617 | E36: 0.2617 | F36: 899358.9023 | G36: 235362.2247 | H36: 235362.2247
B37: May Shoulder 0 - 0.25 | C37: May Shoulder 0 - 0.25 | D37: 3.722 | E37: 3.66735753 | F37: 74302.65296 | G37: 276554.4743 | H37: 272494.3938
B38: May Shoulder 0.25 - 1 | C38: May Shoulder 0.25 - 1 | D38: 2.1139 | E38: 2.1139 | F38: 115553.004 | G38: 244267.4951 | H38: 244267.4951
B39: May Shoulder 1 - 1.5 | C39: May Shoulder 1 - 1.5 | D39: 1.3387 | E39: 1.3387 | F39: 44583.31101 | G39: 59683.67845 | H39: 59683.67845
B40: May Shoulder 1.5 - 5 | C40: May Shoulder 1.5 - 5 | D40: 0.7641 | E40: 0.7641 | F40: 145396.419 | G40: 111097.4038 | H40: 111097.4038
B41: May Shoulder >5 | C41: May Shoulder >5 | D41: 0.2353 | E41: 0.2353 | F41: 149477.1699 | G41: 35171.97809 | H41: 35171.97809
B42: Oct Shoulder 0 - 0.25 | C42: Oct Shoulder 0 - 0.25 | D42: 3.722 | E42: 3.66735753 | F42: 72262.05702 | G42: =D42*$F42 -> 268959.3762 | H42: 265010.7989
B43: Oct Shoulder 0.25 - 1 | C43: Oct Shoulder 0.25 - 1 | D43: 2.1139 | E43: 2.1139 | F43: 111702.0019 | G43: 236126.8619 | H43: 236126.8619
B44: Oct Shoulder 1 - 1.5 | C44: Oct Shoulder 1 - 1.5 | D44: 1.3387 | E44: 1.3387 | F44: 44153.80601 | G44: 59108.7001 | H44: 59108.7001
B45: Oct Shoulder 1.5 - 5 | C45: Oct Shoulder 1.5 - 5 | D45: 0.7641 | E45: 0.7641 | F45: 145933.339 | G45: 111507.6643 | H45: 111507.6643
B46: Oct Shoulder >5 | C46: Oct Shoulder >5 | D46: 0.2353 | E46: 0.2353 | F46: 157757.089 | G46: 37120.24303 | H46: 37120.24303
B47: Off Peak 0 - 0.25 | C47: Off Peak 0 - 0.25 | D47: 3.3756 | E47: 3.326045221 | F47: 355008.2872 | G47: 1198365.974 | H47: 1180773.617
B48: Off Peak 0.25 - 1 | C48: Off Peak 0.25 - 1 | D48: 2.0411 | E48: 2.0411 | F48: 533680.3912 | G48: 1089295.046 | H48: 1089295.046
B49: Off Peak 1 - 1.5 | C49: Off Peak 1 - 1.5 | D49: 1.2218 | E49: 1.2218 | F49: 200341.9361 | G49: 244777.7776 | H49: 244777.7776
B50: Off Peak 1.5 - 5 | C50: Off Peak 1.5 - 5 | D50: 0.7404 | E50: 0.7404 | F50: 591353.1109 | G50: 437837.8433 | H50: 437837.8433
B51: Off Peak >5 | C51: Off Peak >5 | D51: 0.2091 | E51: 0.2091 | F51: 514465.112 | G51: =D51*$F51 -> 107574.6549 | H51: =E51*$F51 -> 107574.6549
B52: Tariff V - Yarra Valley Residential | C52: Tariff V - Yarra Valley Residential
B53: 1 January - 31 December | C53: 1 January - 31 December
B54: Fixed Charge | C54: Fixed Charge | D54: 0.183 | E54: 0.183 | F54: 5537 | G54: =D54*$F54*365 -> 369843.915 | H54: =E54*$F54*365 -> 369843.915
B55: Peak 0 - 0.05 | C55: Peak 0 - 0.05 | D55: 10.5832 | E55: 10.42783213 | F55: 29459.10544 | G55: =D55*$F55 -> 311771.6047 | H55: 307194.6061
B56: Peak 0.05 - 0.1 | C56: Peak 0.05 - 0.1 | D56: 7.8394 | E56: 7.8394 | F56: 24505.51594 | G56: 192108.5417 | H56: 192108.5417
B57: Peak 0.1 -0.15 | C57: Peak 0.1 -0.15 | D57: 5.6037 | E57: 5.6037 | F57: 21468.78107 | G57: 120304.6085 | H57: 120304.6085
B58: Peak 0.15 - 0.25 | C58: Peak 0.15 - 0.25 | D58: 4.4204 | E58: 4.4204 | F58: 34255.01449 | G58: 151420.8661 | H58: 151420.8661
B59: Peak >0.25 | C59: Peak >0.25 | D59: 4.1198 | E59: 4.1198 | F59: 54673.23549 | G59: 225242.7956 | H59: 225242.7956
B60: May Shoulder 0 - 0.05 | C60: May Shoulder 0 - 0.05 | D60: 10.2293 | E60: 10.07910894 | F60: 7277.579999 | G60: 74444.54909 | H60: 73351.5216
B61: May Shoulder 0.05 - 0.1 | C61: May Shoulder 0.05 - 0.1 | D61: 7.6078 | E61: 7.6078 | F61: 5670.975997 | G61: 43143.65119 | H61: 43143.65119
B62: May Shoulder 0.1 -0.15 | C62: May Shoulder 0.1 -0.15 | D62: 5.4839 | E62: 5.4839 | F62: 4624.552002 | G62: 25360.58072 | H62: 25360.58072
B63: May Shoulder 0.15 - 0.25 | C63: May Shoulder 0.15 - 0.25 | D63: 4.3597 | E63: 4.3597 | F63: 6965.616001 | G63: 30367.99608 | H63: 30367.99608
B64: May Shoulder >0.25 | C64: May Shoulder >0.25 | D64: 4.0742 | E64: 4.0742 | F64: 10135.06899 | G64: 41292.29807 | H64: 41292.29807
B65: Oct Shoulder 0 - 0.05 | C65: Oct Shoulder 0 - 0.05 | D65: 10.2293 | E65: 10.07910894 | F65: 7302.753004 | G65: 74702.0513 | H65: 73605.24306
B66: Oct Shoulder 0.05 - 0.1 | C66: Oct Shoulder 0.05 - 0.1 | D66: 7.6078 | E66: 7.6078 | F66: 5511.655961 | G66: 41931.57622 | H66: 41931.57622
B67: Oct Shoulder 0.1 -0.15 | C67: Oct Shoulder 0.1 -0.15 | D67: 5.4839 | E67: 5.4839 | F67: 4069.010982 | G67: 22314.04933 | H67: 22314.04933
B68: Oct Shoulder 0.15 - 0.25 | C68: Oct Shoulder 0.15 - 0.25 | D68: 4.3597 | E68: 4.3597 | F68: 4307.866009 | G68: 18781.00344 | H68: 18781.00344
B69: Oct Shoulder >0.25 | C69: Oct Shoulder >0.25 | D69: 4.0742 | E69: 4.0742 | F69: 3897.993989 | G69: 15881.20711 | H69: 15881.20711
B70: Off Peak 0 - 0.05 | C70: Off Peak 0 - 0.05 | D70: 9.5216 | E70: 9.381868411 | F70: 32879.85334 | G70: 313068.8116 | H70: 308474.4575
B71: Off Peak 0.05 - 0.1 | C71: Off Peak 0.05 - 0.1 | D71: 7.1447 | E71: 7.1447 | F71: 13748.0909 | G71: 98225.98508 | H71: 98225.98508
B72: Off Peak 0.1 -0.15 | C72: Off Peak 0.1 -0.15 | D72: 5.2443 | E72: 5.2443 | F72: 6315.282053 | G72: 33119.23367 | H72: 33119.23367
B73: Off Peak 0.15 - 0.25 | C73: Off Peak 0.15 - 0.25 | D73: 4.2385 | E73: 4.2385 | F73: 4640.763024 | G73: 19669.87408 | H73: 19669.87408
B74: Off Peak >0.25 | C74: Off Peak >0.25 | D74: 4.02 | E74: 3.9831 | F74: 7380.860026 | G74: =D74*$F74 -> 29671.05731 | H74: =E74*$F74 -> 29398.70357
B75: Tariff V - Yarra Valley Non-Residential | C75: Tariff V - Yarra Valley Non-Residential
B76: 1 January - 31 December | C76: 1 January - 31 December
B77: Fixed Charge | C77: Fixed Charge | D77: 0.3004 | E77: 0.3004 | F77: 70 | G77: =D77*$F77*365 -> 7675.22 | H77: =E77*$F77*365 -> 7675.22
B78: Peak 0 - 0.25 | C78: Peak 0 - 0.25 | D78: 6.8072 | E78: 6.707260344 | F78: 1606.584008 | G78: =D78*$F78 -> 10936.33866 | H78: 10775.77721
B79: Peak 0.25 - 1 | C79: Peak 0.25 - 1 | D79: 5.1199 | E79: 5.1199 | F79: 2260.657985 | G79: 11574.34282 | H79: 11574.34282
B80: Peak 1 - 1.5 | C80: Peak 1 - 1.5 | D80: 4.3555 | E80: 4.3555 | F80: 536.2200024 | G80: 2335.50622 | H80: 2335.50622
B81: Peak 1.5 - 5 | C81: Peak 1.5 - 5 | D81: 3.8468 | E81: 3.8468 | F81: 1928.594993 | G81: 7418.91922 | H81: 7418.91922
B82: Peak >5 | C82: Peak >5 | D82: 3.4214 | E82: 3.4214 | F82: 4249.308993 | G82: 14538.58579 | H82: 14538.58579
B83: May Shoulder 0 - 0.25 | C83: May Shoulder 0 - 0.25 | D83: 6.5355 | E83: 6.439542215 | F83: 386.7290015 | G83: 2527.467389 | H83: 2490.357731
B84: May Shoulder 0.25 - 1 | C84: May Shoulder 0.25 - 1 | D84: 4.9288 | E84: 4.9288 | F84: 556.3390071 | G84: 2742.083698 | H84: 2742.083698
B85: May Shoulder 1 - 1.5 | C85: May Shoulder 1 - 1.5 | D85: 4.298 | E85: 4.298 | F85: 116.0809995 | G85: 498.9161359 | H85: 498.9161359
B86: May Shoulder 1.5 - 5 | C86: May Shoulder 1.5 - 5 | D86: 3.8304 | E86: 3.8304 | F86: 472.3869994 | G86: 1809.431163 | H86: 1809.431163
B87: May Shoulder >5 | C87: May Shoulder >5 | D87: 3.4001 | E87: 3.4001 | F87: 810.0840022 | G87: 2754.366616 | H87: 2754.366616
B88: Oct Shoulder 0 - 0.25 | C88: Oct Shoulder 0 - 0.25 | D88: 6.5355 | E88: 6.439542215 | F88: 380.4410011 | G88: 2486.372163 | H88: 2449.865887
B89: Oct Shoulder 0.25 - 1 | C89: Oct Shoulder 0.25 - 1 | D89: 4.9288 | E89: 4.9288 | F89: 477.6429978 | G89: 2354.206808 | H89: 2354.206808
B90: Oct Shoulder 1 - 1.5 | C90: Oct Shoulder 1 - 1.5 | D90: 4.298 | E90: 4.298 | F90: 99.5630011 | G90: 427.9217787 | H90: 427.9217787
B91: Oct Shoulder 1.5 - 5 | C91: Oct Shoulder 1.5 - 5 | D91: 3.8304 | E91: 3.8304 | F91: 342.2450016 | G91: 1310.935254 | H91: 1310.935254
B92: Oct Shoulder >5 | C92: Oct Shoulder >5 | D92: 3.4001 | E92: 3.4001 | F92: 645.5499985 | G92: 2194.93455 | H92: 2194.93455
B93: Off Peak 0 - 0.25 | C93: Off Peak 0 - 0.25 | D93: 6.2533 | E93: 6.161531194 | F93: 1859.108018 | G93: 11625.56017 | H93: 11454.95205
B94: Off Peak 0.25 - 1 | C94: Off Peak 0.25 - 1 | D94: 4.8698 | E94: 4.8698 | F94: 2180.437976 | G94: 10618.29686 | H94: 10618.29686
B95: Off Peak 1 - 1.5 | C95: Off Peak 1 - 1.5 | D95: 4.2028 | E95: 4.2028 | F95: 399.1900013 | G95: 1677.715737 | H95: 1677.715737
B96: Off Peak 1.5 - 5 | C96: Off Peak 1.5 - 5 | D96: 3.8112 | E96: 3.8112 | F96: 1794.727003 | G96: 6840.063554 | H96: 6840.063554
B97: Off Peak >5 | C97: Off Peak >5 | D97: 3.3787 | E97: 3.3787 | F97: 2615.044994 | G97: 8835.452522 | H97: 8835.452522
B98: Tariff V - South Gippsland Residential | C98: Tariff V - South Gippsland Residential
B99: 1 January - 31 December | C99: 1 January - 31 December
B100: Fixed Charge | C100: Fixed Charge | D100: 0.183 | E100: 0.183 | F100: 5708 | G100: =D100*$F100*365 -> 381265.86 | H100: =E100*$F100*365 -> 381265.86
B101: Peak 0 - 0.05 | C101: Peak 0 - 0.05 | D101: 11.5179 | E101: 11.34884013 | F101: 26360.13107 | G101: =D101*$F101 -> 303613.3536 | H101: 299156.9133
B102: Peak 0.05 - 0.1 | C102: Peak 0.05 - 0.1 | D102: 8.5804 | E102: 8.5804 | F102: 19423.85709 | G102: 166664.4633 | H102: 166664.4633
B103: Peak 0.1 -0.15 | C103: Peak 0.1 -0.15 | D103: 6.2062 | E103: 6.2062 | F103: 15284.09312 | G103: 94856.13873 | H103: 94856.13873
B104: Peak 0.15 - 0.25 | C104: Peak 0.15 - 0.25 | D104: 4.9497 | E104: 4.9497 | F104: 20405.66306 | G104: 101001.9105 | H104: 101001.9105
B105: Peak >0.25 | C105: Peak >0.25 | D105: 4.6306 | E105: 4.6306 | F105: 19711.75996 | G105: 91277.27565 | H105: 91277.27565
B106: May Shoulder 0 - 0.05 | C106: May Shoulder 0 - 0.05 | D106: 11.1419 | E106: 10.97839894 | F106: 6353.872943 | G106: 70794.21694 | H106: 69755.35196
B107: May Shoulder 0.05 - 0.1 | C107: May Shoulder 0.05 - 0.1 | D107: 8.3346 | E107: 8.3346 | F107: 4036.703906 | G107: 33644.31238 | H107: 33644.31238
B108: May Shoulder 0.1 -0.15 | C108: May Shoulder 0.1 -0.15 | D108: 6.079 | E108: 6.079 | F108: 2520.944998 | G108: 15324.82464 | H108: 15324.82464
B109: May Shoulder 0.15 - 0.25 | C109: May Shoulder 0.15 - 0.25 | D109: 4.8853 | E109: 4.8853 | F109: 2164.351032 | G109: 10573.5041 | H109: 10573.5041
B110: May Shoulder >0.25 | C110: May Shoulder >0.25 | D110: 4.582 | E110: 4.582 | F110: 1794.904 | G110: 8224.25013 | H110: 8224.25013
B111: Oct Shoulder 0 - 0.05 | C111: Oct Shoulder 0 - 0.05 | D111: 11.1419 | E111: 10.97839894 | F111: 6264.935036 | G111: 69803.27967 | H111: 68778.95614
B112: Oct Shoulder 0.05 - 0.1 | C112: Oct Shoulder 0.05 - 0.1 | D112: 8.3346 | E112: 8.3346 | F112: 3603.681016 | G112: 30035.2398 | H112: 30035.2398
B113: Oct Shoulder 0.1 -0.15 | C113: Oct Shoulder 0.1 -0.15 | D113: 6.079 | E113: 6.079 | F113: 2054.350024 | G113: 12488.3938 | H113: 12488.3938
B114: Oct Shoulder 0.15 - 0.25 | C114: Oct Shoulder 0.15 - 0.25 | D114: 4.8853 | E114: 4.8853 | F114: 1707.727965 | G114: 8342.763428 | H114: 8342.763428
B115: Oct Shoulder >0.25 | C115: Oct Shoulder >0.25 | D115: 4.582 | E115: 4.582 | F115: 1161.538998 | G115: 5322.171691 | H115: 5322.171691
B116: Off Peak 0 - 0.05 | C116: Off Peak 0 - 0.05 | D116: 10.3907 | E116: 10.23813412 | F116: 25322.99669 | G116: 263123.6617 | H116: 259260.2365
B117: Off Peak 0.05 - 0.1 | C117: Off Peak 0.05 - 0.1 | D117: 7.8428 | E117: 7.8428 | F117: 8409.750183 | G117: 65955.98874 | H117: 65955.98874
B118: Off Peak 0.1 -0.15 | C118: Off Peak 0.1 -0.15 | D118: 5.8247 | E118: 5.8247 | F118: 3906.752057 | G118: 22755.65871 | H118: 22755.65871
B119: Off Peak 0.15 - 0.25 | C119: Off Peak 0.15 - 0.25 | D119: 4.7565 | E119: 4.7565 | F119: 2847.627087 | G119: 13544.73824 | H119: 13544.73824
B120: Off Peak >0.25 | C120: Off Peak >0.25 | D120: 4.4852 | E120: 4.4852 | F120: 5002.128026 | G120: =D120*$F120 -> 22435.54462 | H120: =E120*$F120 -> 22435.54462
B121: Tariff V - South Gippsland Non-Residential | C121: Tariff V - South Gippsland Non-Residential
B122: 1 January - 31 December | C122: 1 January - 31 December
B123: Fixed Charge | C123: Fixed Charge | D123: 0.3018 | E123: 0.3018 | F123: 115 | G123: =D123*$F123*365 -> 12668.055 | H123: =E123*$F123*365 -> 12668.055
B124: Peak 0 - 0.25 | C124: Peak 0 - 0.25 | D124: 7.508 | E124: 7.397810489 | F124: 2540.73801 | G124: =D124*$F124 -> 19075.86098 | H124: 18795.8983
B125: Peak 0.25 - 1 | C125: Peak 0.25 - 1 | D125: 5.6927 | E125: 5.6927 | F125: 4864.649002 | G125: 27692.98738 | H125: 27692.98738
B126: Peak 1 - 1.5 | C126: Peak 1 - 1.5 | D126: 4.8807 | E126: 4.8807 | F126: 2304.204003 | G126: 11246.12848 | H126: 11246.12848
B127: Peak 1.5 - 5 | C127: Peak 1.5 - 5 | D127: 4.3408 | E127: 4.3408 | F127: 9135.884996 | G127: 39657.04959 | H127: 39657.04959
B128: Peak >5 | C128: Peak >5 | D128: 3.889 | E128: 3.889 | F128: 15699.512 | G128: 61055.40216 | H128: 61055.40216
B129: May Shoulder 0 - 0.25 | C129: May Shoulder 0 - 0.25 | D129: 7.2196 | E129: 7.113623733 | F129: 596.3540066 | G129: 4305.437386 | H129: 4242.238014
B130: May Shoulder 0.25 - 1 | C130: May Shoulder 0.25 - 1 | D130: 5.4896 | E130: 5.4896 | F130: 1094.788998 | G130: 6009.953683 | H130: 6009.953683
B131: May Shoulder 1 - 1.5 | C131: May Shoulder 1 - 1.5 | D131: 4.8199 | E131: 4.8199 | F131: 499.5359984 | G131: 2407.713559 | H131: 2407.713559
B132: May Shoulder 1.5 - 5 | C132: May Shoulder 1.5 - 5 | D132: 4.3232 | E132: 4.3232 | F132: 2061.356999 | G132: 8911.658578 | H132: 8911.658578
B133: May Shoulder >5 | C133: May Shoulder >5 | D133: 3.8662 | E133: 3.8662 | F133: 2693.682003 | G133: 10414.31336 | H133: 10414.31336
B134: Oct Shoulder 0 - 0.25 | C134: Oct Shoulder 0 - 0.25 | D134: 7.2196 | E134: 7.113623733 | F134: 603.7720055 | G134: 4358.992371 | H134: 4295.006867
B135: Oct Shoulder 0.25 - 1 | C135: Oct Shoulder 0.25 - 1 | D135: 5.4896 | E135: 5.4896 | F135: 1135.746005 | G135: 6234.791272 | H135: 6234.791272
B136: Oct Shoulder 1 - 1.5 | C136: Oct Shoulder 1 - 1.5 | D136: 4.8199 | E136: 4.8199 | F136: 503.5190003 | G136: 2426.91123 | H136: 2426.91123
B137: Oct Shoulder 1.5 - 5 | C137: Oct Shoulder 1.5 - 5 | D137: 4.3232 | E137: 4.3232 | F137: 2113.721003 | G137: 9138.038641 | H137: 9138.038641
B138: Oct Shoulder >5 | C138: Oct Shoulder >5 | D138: 3.8662 | E138: 3.8662 | F138: 2943.517002 | G138: 11380.22543 | H138: 11380.22543
B139: Off Peak 0 - 0.25 | C139: Off Peak 0 - 0.25 | D139: 6.9201 | E139: 6.81852651 | F139: 3117.052988 | G139: 21570.31838 | H139: 21253.70843
B140: Off Peak 0.25 - 1 | C140: Off Peak 0.25 - 1 | D140: 5.4269 | E140: 5.4269 | F140: 5918.371006 | G140: 32118.40761 | H140: 32118.40761
B141: Off Peak 1 - 1.5 | C141: Off Peak 1 - 1.5 | D141: 4.7186 | E141: 4.7186 | F141: 2656.559995 | G141: 12535.24399 | H141: 12535.24399
B142: Off Peak 1.5 - 5 | C142: Off Peak 1.5 - 5 | D142: 4.3028 | E142: 4.3028 | F142: 9239.258019 | G142: 39754.6794 | H142: 39754.6794
B143: Off Peak >5 | C143: Off Peak >5 | D143: 3.8436 | E143: 3.8436 | F143: 9447.508994 | G143: 36312.44557 | H143: 36312.44557
B145: Tariff D - Multinet | C145: Tariff D - Multinet
B146: 0 - 50 | C146: 0 - 50 | D146: 598.9217 | E146: 595.3247 | F146: 3044.79 | G146: =D146*$F146 -> 1823590.803 | H146: =E146*$F146 -> 1812638.693
B147: > 50 | C147: > 50 | D147: 101.9014 | E147: 101.2894 | F147: 534.32 | G147: =D147*$F147 -> 54447.95605 | H147: =E147*$F147 -> 54120.95221
B149: Tariff L- Multinet Non-Residential | C149: Tariff L- Multinet Non-Residential
B150: 1 January - 31 December | C150: 1 January - 31 December
B151: Fixed Charge | C151: Fixed Charge | D151: 0 | E151: 0 | F151: 12 | G151: =D151*$F151*365 -> 0 | H151: =E151*$F151*365 -> 0
B152: Peak < 5 | C152: Peak < 5 | D152: 0.6416 | E152: 0.6377 | F152: 6200.74 | G152: =D152*$F152 -> 3978.394784 | H152: 3954.211898
B153: Peak > 5 | C153: Peak > 5 | D153: 0.1376 | E153: 0.1368 | F153: 26827.48 | G153: 3691.461248 | H153: 3669.999264
B154: May Shoulder < 5 | C154: May Shoulder < 5 | D154: 0.5688 | E154: 0.5654 | F154: 1550.22 | G154: 881.765136 | H154: 876.494388
B155: May Shoulder > 5 | C155: May Shoulder > 5 | D155: 0.1292 | E155: 0.1284 | F155: 5594.43 | G155: 722.800356 | H155: 718.324812
B156: Oct Shoulder < 5 | C156: Oct Shoulder < 5 | D156: 0.5688 | E156: 0.5654 | F156: 1551.27 | G156: 882.362376 | H156: 877.088058
B157: Oct Shoulder > 5 | C157: Oct Shoulder > 5 | D157: 0.1292 | E157: 0.1284 | F157: 4598.68 | G157: 594.149456 | H157: 590.470512
B158: Off Peak < 5 | C158: Off Peak < 5 | D158: 0.451 | E158: 0.4483 | F158: 8819.96 | G158: 3977.80196 | H158: 3953.988068
B159: Off Peak > 5 | C159: Off Peak > 5 | D159: 0.1026 | E159: 0.102 | F159: 18454.08 | G159: =D159*$F159 -> 1893.388608 | H159: =E159*$F159 -> 1882.31616
B160: Tariff L - Multinet | C160: Tariff L - Multinet
B161: Rolling 12 month max [$/GJ (MHQ/d)] | C161: Rolling 12 month max [$/GJ (MHQ/d)] | D161: 0.5965 | E161: 0.5929 | F161: 38.18 | G161: =D161*$F161*365 -> 8312.64505 | H161: =E161*$F161*365 -> 8262.47653
B162: Peak Demand [$/GJ (MHQ/d)] | C162: Peak Demand [$/GJ (MHQ/d)] | D162: 1.7846 | E162: 1.7739 | F162: 35.22 | G162: =D162*$F162*122 -> 7668.140664 | H162: =E162*$F162*122 -> 7622.164476
B163: Tariff D - Multinet South Gippsland | C163: Tariff D - Multinet South Gippsland
B164: 0 - 50 | C164: 0 - 50 | D164: 647.0819 | E164: 643.1957 | F164: 100 | G164: =D164*$F164 -> 64708.19 | H164: =E164*$F164 -> 64319.57
B165: > 50 | C165: > 50 | D165: 110.0889 | E165: 109.4277 | F165: 67.34 | G165: =D165*$F165 -> 7413.386526 | H165: =E165*$F165 -> 7368.861318
B168: Total Revenue | C168: Total Revenue | G168: =SUM(G8:G166) -> 214021449 | H168: =SUM(H8:H166) -> 212736084.9

Sheet 2021TarContForm
B1: ="Tariff Approval - "&'Model update'!B3 -> Tariff Approval - MultiNet | C1: ='Model update'!B5&"TarContForm" -> 2021TarContForm
B3: ='Model update'!$B$5&" TARIFF CONTROL FORMULA" -> 2021 TARIFF CONTROL FORMULA
B6: CPI
B8: ="CPI Sept"&'Model update'!$B$9 -> CPI Sept2019 | C8: ='Model update'!B26 -> 114.8
B9: ="CPI Sept"&'Model update'!$B$8 -> CPI Sept2020 | C9: ='Model update'!B27 -> 114.4
B11: ="CPI "&'Model update'!$B$5 -> CPI 2021 | C11: =(C9/C8-1) -> -0.003484320557
B15: X factor
B17: ="X "&'Model update'!$B$5 -> X 2021 | C17: ='Model update'!B40 -> -0.009559692326
B20: Pass Through Factor (PT)
B22: pass through
B23: ="AP (t) "&'Model update'!$B$7 -> AP (t) 2021 | C23: ='Model update'!B50 -> 0
B25: Revenue
B26: ∑∑p(t-1)q(t-2) | C26: =C41 -> 212736084.9
B28: PT' (t-1) | C28: 0
B29: ="PT' "&'Model update'!$B$5 -> PT' 2021 | C29: =IF(C26="",0,(C23)/((1+C11)*(1-C17)*C26)) -> 0
B31: ="PTt "&'Model update'!$B$5 -> PTt 2021 | C31: =((1+C29)/(1+C28))-1 -> 0
B36: ='Model update'!$B$5&" Distribution price control" -> 2021 Distribution price control
B38: Average price movement allowed | C38: =(1+C11)*(1-C17)*(1+C31) -> 1.006042063
B40: Proposed distribution tariff revenue | C40: =IF(Prop2021DistTar!G168=0,"",Prop2021DistTar!G168) -> 214021449
B41: Existing distribution tariff revenue | C41: =IF(Prop2021DistTar!H168=0,"",Prop2021DistTar!H168) -> 212736084.9
B42: Average price movement | C42: =IF(C40="","",C40/C41) -> 1.006042059
B44: =IF(C40="","",IF(C38>=C42,"DISTRIBUTION PRICE CONTROL FORMULA COMPLIANT","DISTRIBUTION PRICE CONTROL FORMULA BREACHED")) -> DISTRIBUTION PRICE CONTROL FORMULA COMPLIANT

Sheet 2021RebalContForm
B1: ="Tariff Approval - "&'Model update'!B3 -> Tariff Approval - MultiNet | C1: ='Model update'!B5&"RebalContForm" -> 2021RebalContForm
B3: ='Model update'!$B$5&" REBALANCING CONTROL FORMULA" -> 2021 REBALANCING CONTROL FORMULA
B6: Rebalancing control
B8: ="CPI "&'Model update'!$B$5 -> CPI 2021 | C8: ='2021TarContForm'!C11 -> -0.003484320557
B9: ="Y "&'Model update'!$B$5 -> Y 2021 | C9: 0.02
B10: ="PTt "&'Model update'!$B$5 -> PTt 2021 | C10: ='2021TarContForm'!C31 -> 0
B11: ="Xt "&'Model update'!$B$5 -> Xt 2021 | C11: ='2021TarContForm'!C17 -> -0.009559692326
B13: Rebalancing control | C13: =(1+C8)*(1+C9)*(1+C10)*(1-C11) -> 1.026162904
B17: Rebalancing control summary
C18: Existing | D18: Proposed | E18: Movement | F18: Assessment
B19: =B32 -> Tariff V - Multinet Residential | C19: =C53 -> 196496549.2 | D19: =C54 -> 197702755 | E19: =IF(C19=0,0,D19/C19) -> 1.006138559 | F19: =IF(E19=0,"",IF($C$13<=E19,"Breached","Compliant")) -> Compliant
B20: =B62 -> Tariff V - Yarra Valley Residential | C20: =C83 -> 2241032.714 | D20: =C84 -> 2252666.256 | E20: 1.005191152 | F20: =IF(E20=0,"",IF($C$13<=E20,"Breached","Compliant")) -> Compliant
B21: =B92 -> Tariff V - South Gippsland Residential | C21: =C113 -> 1780664.496 | D21: =C114 -> 1791047.55 | E21: 1.005831 | F21: Compliant
B22: =B122 -> Tariff V - Multinet Non-Residential | C22: =C143 -> 9755654.17 | D22: =C144 -> 9799759.691 | E22: 1.004521021 | F22: Compliant
B23: =B152 -> Tariff V - Yarra Valley Non-Residential | C23: =C173 -> 112777.8516 | D23: =C174 -> 113182.6371 | E23: 1.003589229 | F23: Compliant
B24: =B182 -> Tariff V - South Gippsland Non-Residential | C24: =C203 -> 378550.8565 | D24: =C204 -> 379274.614 | E24: 1.001911916 | F24: Compliant
B25: =B212 -> Tariff D - Multinet | C25: =C227 -> 1866759.646 | D25: =C228 -> 1878038.759 | E25: 1.006042081 | F25: Compliant
B26: =B265 -> Tariff D - Multinet South Gippsland | C26: =C280 -> 71688.43132 | D26: =C281 -> 72121.57653 | E26: 1.006042052 | F26: Compliant
B27: Tariff L - Multinet | C27: =C256 -> 32407.53417 | D27: =C257 -> 32602.90964 | E27: 1.006028705 | F27: Compliant
C28: =SUM(C19:C27) -> 212736084.9 | D28: =SUM(D19:D27) -> 214021449 | E28: 1.006042059
B32: =Prop2021DistTar!B6 -> Tariff V - Multinet Residential | C32: 1 | D32: 2 | E32: 3 | F32: 4 | G32: 5 | H32: 6 | I32: 7 | J32: 8 | K32: 9 | L32: 10 | M32: 11 | N32: 12 | O32: 13 | P32: 14 | Q32: 15 | R32: 16 | S32: 17 | T32: 18 | U32: 19 | V32: 20 | W32: 21
C33: 1 | D33: 2 | E33: 3 | F33: 4 | G33: 5 | H33: 6 | I33: 7 | J33: 8 | K33: 9 | L33: 10 | M33: 11 | N33: 12 | O33: 13 | P33: 14 | Q33: 15 | R33: 16 | S33: 17 | T33: 18 | U33: 19 | V33: 20 | W33: 21
B34: Distribution tariff | C34: Fixed | D34: PkBlk1 | E34: PkBlk2 | F34: PkBlk3 | G34: PkBlk4 | H34: PkBlk5 | I34: Shd1Blk1 | J34: Shd1Blk2 | K34: Shd1Blk3 | L34: Shd1Blk4 | M34: Shd1Blk5 | N34: Shd2Blk1 | O34: Shd2Blk2 | P34: Shd2Blk3 | Q34: Shd2Blk4 | R34: Shd2Blk5 | S34: OPkBlk1 | T34: OPkBlk2 | U34: OPkBlk3 | V34: OPkBlk4 | W34: OPkBlk5
B36: ="Existing (1 Jan-31 Dec): "&Prop2021DistTar!C6 -> Existing (1 Jan-31 Dec): Tariff V - Multinet Residential | C36: =INDEX(Prop2021DistTar!$E$8:$E$28,C$33) -> 0.183 | D36: =INDEX(Prop2021DistTar!$E$8:$E$28,D$33) -> 8.750296539 | E36: =INDEX(Prop2021DistTar!$E$8:$E$28,E$33) -> 5.8383 | F36: =INDEX(Prop2021DistTar!$E$8:$E$28,F$33) -> 3.0185 | G36: =INDEX(Prop2021DistTar!$E$8:$E$28,G$33) -> 1.5276 | H36: =INDEX(Prop2021DistTar!$E$8:$E$28,H$33) -> 1.1329 | I36: =INDEX(Prop2021DistTar!$E$8:$E$28,I$33) -> 8.351549891 | J36: =INDEX(Prop2021DistTar!$E$8:$E$28,J$33) -> 5.5464 | K36: =INDEX(Prop2021DistTar!$E$8:$E$28,K$33) -> 2.8686 | L36: =INDEX(Prop2021DistTar!$E$8:$E$28,L$33) -> 1.4513 | M36: =INDEX(Prop2021DistTar!$E$8:$E$28,M$33) -> 1.0913 | N36: =INDEX(Prop2021DistTar!$E$8:$E$28,N$33) -> 8.351549891 | O36: =INDEX(Prop2021DistTar!$E$8:$E$28,O$33) -> 5.5464 | P36: =INDEX(Prop2021DistTar!$E$8:$E$28,P$33) -> 2.8686 | Q36: =INDEX(Prop2021DistTar!$E$8:$E$28,Q$33) -> 1.4513 | R36: =INDEX(Prop2021DistTar!$E$8:$E$28,R$33) -> 1.0913 | S36: =INDEX(Prop2021DistTar!$E$8:$E$28,S$33) -> 7.472536888 | T36: =INDEX(Prop2021DistTar!$E$8:$E$28,T$33) -> 4.9627 | U36: =INDEX(Prop2021DistTar!$E$8:$E$28,U$33) -> 2.5666 | V36: =INDEX(Prop2021DistTar!$E$8:$E$28,V$33) -> 1.2985 | W36: =INDEX(Prop2021DistTar!$E$8:$E$28,W$33) -> 0.9766
B38: ="Proposed (1 Jan-31 Dec): "&B32 -> Proposed (1 Jan-31 Dec): Tariff V - Multinet Residential | C38: =INDEX(Prop2021DistTar!$D$8:$D$28,C$32) -> 0.183 | D38: =INDEX(Prop2021DistTar!$D$8:$D$28,D$32) -> 8.8806 | E38: =INDEX(Prop2021DistTar!$D$8:$D$28,E$32) -> 5.8383 | F38: =INDEX(Prop2021DistTar!$D$8:$D$28,F$32) -> 3.0185 | G38: =INDEX(Prop2021DistTar!$D$8:$D$28,G$32) -> 1.5276 | H38: =INDEX(Prop2021DistTar!$D$8:$D$28,H$32) -> 1.1329 | I38: =INDEX(Prop2021DistTar!$D$8:$D$28,I$32) -> 8.476 | J38: =INDEX(Prop2021DistTar!$D$8:$D$28,J$32) -> 5.5464 | K38: =INDEX(Prop2021DistTar!$D$8:$D$28,K$32) -> 2.8686 | L38: =INDEX(Prop2021DistTar!$D$8:$D$28,L$32) -> 1.4513 | M38: =INDEX(Prop2021DistTar!$D$8:$D$28,M$32) -> 1.0913 | N38: =INDEX(Prop2021DistTar!$D$8:$D$28,N$32) -> 8.476 | O38: =INDEX(Prop2021DistTar!$D$8:$D$28,O$32) -> 5.5464 | P38: =INDEX(Prop2021DistTar!$D$8:$D$28,P$32) -> 2.8686 | Q38: =INDEX(Prop2021DistTar!$D$8:$D$28,Q$32) -> 1.4513 | R38: =INDEX(Prop2021DistTar!$D$8:$D$28,R$32) -> 1.0913 | S38: =INDEX(Prop2021DistTar!$D$8:$D$28,S$32) -> 7.5839 | T38: =INDEX(Prop2021DistTar!$D$8:$D$28,T$32) -> 4.9627 | U38: =INDEX(Prop2021DistTar!$D$8:$D$28,U$32) -> 2.5666 | V38: =INDEX(Prop2021DistTar!$D$8:$D$28,V$32) -> 1.2985 | W38: =INDEX(Prop2021DistTar!$D$8:$D$28,W$32) -> 0.9766
B40: Distribution volumes (actual) | C40: Fixed | D40: PkBlk1 | E40: PkBlk2 | F40: PkBlk3 | G40: PkBlk4 | H40: PkBlk5 | I40: Shd1Blk1 | J40: Shd1Blk2 | K40: Shd1Blk3 | L40: Shd1Blk4 | M40: Shd1Blk5 | N40: Shd2Blk1 | O40: Shd2Blk2 | P40: Shd2Blk3 | Q40: Shd2Blk4 | R40: Shd2Blk5 | S40: OPkBlk1 | T40: OPkBlk2 | U40: OPkBlk3 | V40: OPkBlk4 | W40: OPkBlk5
B42: =B36 -> Existing (1 Jan-31 Dec): Tariff V - Multinet Residential | C42: =INDEX(Prop2021DistTar!$F$8:$F$28,C$32) -> 683819 | D42: =INDEX(Prop2021DistTar!$F$8:$F$28,D$32) -> 3656357.659 | E42: =INDEX(Prop2021DistTar!$F$8:$F$28,E$32) -> 3045063.953 | F42: =INDEX(Prop2021DistTar!$F$8:$F$28,F$32) -> 2645466.095 | G42: =INDEX(Prop2021DistTar!$F$8:$F$28,G$32) -> 4271305.688 | H42: =INDEX(Prop2021DistTar!$F$8:$F$28,H$32) -> 7916490.729 | I42: =INDEX(Prop2021DistTar!$F$8:$F$28,I$32) -> 910259.8255 | J42: =INDEX(Prop2021DistTar!$F$8:$F$28,J$32) -> 709598.9296 | K42: =INDEX(Prop2021DistTar!$F$8:$F$28,K$32) -> 564811.0287 | L42: =INDEX(Prop2021DistTar!$F$8:$F$28,L$32) -> 787777.1575 | M42: =INDEX(Prop2021DistTar!$F$8:$F$28,M$32) -> 1101432.544 | N42: =INDEX(Prop2021DistTar!$F$8:$F$28,N$32) -> 898951.6776 | O42: =INDEX(Prop2021DistTar!$F$8:$F$28,O$32) -> 656008.1364 | P42: =INDEX(Prop2021DistTar!$F$8:$F$28,P$32) -> 466704.8574 | Q42: =INDEX(Prop2021DistTar!$F$8:$F$28,Q$32) -> 536718.7704 | R42: =INDEX(Prop2021DistTar!$F$8:$F$28,R$32) -> 547491.7996 | S42: =INDEX(Prop2021DistTar!$F$8:$F$28,S$32) -> 4531241.101 | T42: =INDEX(Prop2021DistTar!$F$8:$F$28,T$32) -> 1955394.87 | U42: =INDEX(Prop2021DistTar!$F$8:$F$28,U$32) -> 938386.8922 | V42: =INDEX(Prop2021DistTar!$F$8:$F$28,V$32) -> 845215.1388 | W42: =INDEX(Prop2021DistTar!$F$8:$F$28,W$32) -> 1162552.108
B44: =B38 -> Proposed (1 Jan-31 Dec): Tariff V - Multinet Residential | C44: =INDEX(Prop2021DistTar!$F$8:$F$28,C$32) -> 683819 | D44: =INDEX(Prop2021DistTar!$F$8:$F$28,D$32) -> 3656357.659 | E44: =INDEX(Prop2021DistTar!$F$8:$F$28,E$32) -> 3045063.953 | F44: =INDEX(Prop2021DistTar!$F$8:$F$28,F$32) -> 2645466.095 | G44: =INDEX(Prop2021DistTar!$F$8:$F$28,G$32) -> 4271305.688 | H44: =INDEX(Prop2021DistTar!$F$8:$F$28,H$32) -> 7916490.729 | I44: =INDEX(Prop2021DistTar!$F$8:$F$28,I$32) -> 910259.8255 | J44: =INDEX(Prop2021DistTar!$F$8:$F$28,J$32) -> 709598.9296 | K44: =INDEX(Prop2021DistTar!$F$8:$F$28,K$32) -> 564811.0287 | L44: =INDEX(Prop2021DistTar!$F$8:$F$28,L$32) -> 787777.1575 | M44: =INDEX(Prop2021DistTar!$F$8:$F$28,M$32) -> 1101432.544 | N44: =INDEX(Prop2021DistTar!$F$8:$F$28,N$32) -> 898951.6776 | O44: =INDEX(Prop2021DistTar!$F$8:$F$28,O$32) -> 656008.1364 | P44: =INDEX(Prop2021DistTar!$F$8:$F$28,P$32) -> 466704.8574 | Q44: =INDEX(Prop2021DistTar!$F$8:$F$28,Q$32) -> 536718.7704 | R44: =INDEX(Prop2021DistTar!$F$8:$F$28,R$32) -> 547491.7996 | S44: =INDEX(Prop2021DistTar!$F$8:$F$28,S$32) -> 4531241.101 | T44: =INDEX(Prop2021DistTar!$F$8:$F$28,T$32) -> 1955394.87 | U44: =INDEX(Prop2021DistTar!$F$8:$F$28,U$32) -> 938386.8922 | V44: =INDEX(Prop2021DistTar!$F$8:$F$28,V$32) -> 845215.1388 | W44: =INDEX(Prop2021DistTar!$F$8:$F$28,W$32) -> 1162552.108
B46: Distribution revenue | C46: Fixed | D46: PkBlk1 | E46: PkBlk2 | F46: PkBlk3 | G46: PkBlk4 | H46: PkBlk5 | I46: Shd1Blk1 | J46: Shd1Blk2 | K46: Shd1Blk3 | L46: Shd1Blk4 | M46: Shd1Blk5 | N46: Shd2Blk1 | O46: Shd2Blk2 | P46: Shd2Blk3 | Q46: Shd2Blk4 | R46: Shd2Blk5 | S46: OPkBlk1 | T46: OPkBlk2 | U46: OPkBlk3 | V46: OPkBlk4 | W46: OPkBlk5
B48: =B42 -> Existing (1 Jan-31 Dec): Tariff V - Multinet Residential | C48: =INDEX(Prop2021DistTar!$H$8:$H$28,C$33) -> 45675690.1 | D48: =INDEX(Prop2021DistTar!$H$8:$H$28,D$33) -> 31994213.77 | E48: =INDEX(Prop2021DistTar!$H$8:$H$28,E$33) -> 17777996.88 | F48: =INDEX(Prop2021DistTar!$H$8:$H$28,F$33) -> 7985339.408 | G48: =INDEX(Prop2021DistTar!$H$8:$H$28,G$33) -> 6524846.569 | H48: =INDEX(Prop2021DistTar!$H$8:$H$28,H$33) -> 8968592.347 | I48: =INDEX(Prop2021DistTar!$H$8:$H$28,I$33) -> 7602080.346 | J48: =INDEX(Prop2021DistTar!$H$8:$H$28,J$33) -> 3935719.503 | K48: =INDEX(Prop2021DistTar!$H$8:$H$28,K$33) -> 1620216.917 | L48: =INDEX(Prop2021DistTar!$H$8:$H$28,L$33) -> 1143300.989 | M48: =INDEX(Prop2021DistTar!$H$8:$H$28,M$33) -> 1201993.335 | N48: =INDEX(Prop2021DistTar!$H$8:$H$28,N$33) -> 7507639.785 | O48: =INDEX(Prop2021DistTar!$H$8:$H$28,O$33) -> 3638483.528 | P48: =INDEX(Prop2021DistTar!$H$8:$H$28,P$33) -> 1338789.554 | Q48: =INDEX(Prop2021DistTar!$H$8:$H$28,Q$33) -> 778939.9515 | R48: =INDEX(Prop2021DistTar!$H$8:$H$28,R$33) -> 597477.8009 | S48: =INDEX(Prop2021DistTar!$H$8:$H$28,S$33) -> 33859866.28 | T48: =INDEX(Prop2021DistTar!$H$8:$H$28,T$33) -> 9704038.121 | U48: =INDEX(Prop2021DistTar!$H$8:$H$28,U$33) -> 2408463.798 | V48: =INDEX(Prop2021DistTar!$H$8:$H$28,V$33) -> 1097511.858 | W48: =INDEX(Prop2021DistTar!$H$8:$H$28,W$33) -> 1135348.389
B50: =B44 -> Proposed (1 Jan-31 Dec): Tariff V - Multinet Residential | C50: =INDEX(Prop2021DistTar!$G$8:$G$28,C$32) -> 45675690.1 | D50: =INDEX(Prop2021DistTar!$G$8:$G$28,D$32) -> 32470649.83 | E50: =INDEX(Prop2021DistTar!$G$8:$G$28,E$32) -> 17777996.88 | F50: =INDEX(Prop2021DistTar!$G$8:$G$28,F$32) -> 7985339.408 | G50: =INDEX(Prop2021DistTar!$G$8:$G$28,G$32) -> 6524846.569 | H50: =INDEX(Prop2021DistTar!$G$8:$G$28,H$32) -> 8968592.347 | I50: =INDEX(Prop2021DistTar!$G$8:$G$28,I$32) -> 7715362.281 | J50: =INDEX(Prop2021DistTar!$G$8:$G$28,J$32) -> 3935719.503 | K50: =INDEX(Prop2021DistTar!$G$8:$G$28,K$32) -> 1620216.917 | L50: =INDEX(Prop2021DistTar!$G$8:$G$28,L$32) -> 1143300.989 | M50: =INDEX(Prop2021DistTar!$G$8:$G$28,M$32) -> 1201993.335 | N50: =INDEX(Prop2021DistTar!$G$8:$G$28,N$32) -> 7619514.419 | O50: =INDEX(Prop2021DistTar!$G$8:$G$28,O$32) -> 3638483.528 | P50: =INDEX(Prop2021DistTar!$G$8:$G$28,P$32) -> 1338789.554 | Q50: =INDEX(Prop2021DistTar!$G$8:$G$28,Q$32) -> 778939.9515 | R50: =INDEX(Prop2021DistTar!$G$8:$G$28,R$32) -> 597477.8009 | S50: =INDEX(Prop2021DistTar!$G$8:$G$28,S$32) -> 34364479.39 | T50: =INDEX(Prop2021DistTar!$G$8:$G$28,T$32) -> 9704038.121 | U50: =INDEX(Prop2021DistTar!$G$8:$G$28,U$32) -> 2408463.798 | V50: =INDEX(Prop2021DistTar!$G$8:$G$28,V$32) -> 1097511.858 | W50: =INDEX(Prop2021DistTar!$G$8:$G$28,W$32) -> 1135348.389
B52: Revenue | C52: Total
B53: =B48 -> Existing (1 Jan-31 Dec): Tariff V - Multinet Residential | C53: =SUM(C48:W48) -> 196496549.2
B54: =B50 -> Proposed (1 Jan-31 Dec): Tariff V - Multinet Residential | C54: =SUM(C50:W50) -> 197702755
B56: Average price movement | C56: =IF(C54=0,"",C54/C53) -> 1.006138559
B58: =IF(C56="","",IF(C56<=$C$13,"REBALANCING CONTROL COMPLIANT","REBALANCING CONTROL BREACHED")) -> REBALANCING CONTROL COMPLIANT
B62: =Prop2021DistTar!B52 -> Tariff V - Yarra Valley Residential | C62: 1 | D62: 2 | E62: 3 | F62: 4 | G62: 5 | H62: 6 | I62: 7 | J62: 8 | K62: 9 | L62: 10 | M62: 11 | N62: 12 | O62: 13 | P62: 14 | Q62: 15 | R62: 16 | S62: 17 | T62: 18 | U62: 19 | V62: 20 | W62: 21
C63: 1 | D63: 2 | E63: 3 | F63: 4 | G63: 5 | H63: 6 | I63: 7 | J63: 8 | K63: 9 | L63: 10 | M63: 11 | N63: 12 | O63: 13 | P63: 14 | Q63: 15 | R63: 16 | S63: 17 | T63: 18 | U63: 19 | V63: 20 | W63: 21
B64: Distribution tariff | C64: Fixed | D64: PkBlk1 | E64: PkBlk2 | F64: PkBlk3 | G64: PkBlk4 | H64: PkBlk5 | I64: Shd1Blk1 | J64: Shd1Blk2 | K64: Shd1Blk3 | L64: Shd1Blk4 | M64: Shd1Blk5 | N64: Shd2Blk1 | O64: Shd2Blk2 | P64: Shd2Blk3 | Q64: Shd2Blk4 | R64: Shd2Blk5 | S64: OPkBlk1 | T64: OPkBlk2 | U64: OPkBlk3 | V64: OPkBlk4 | W64: OPkBlk5
B66: ="Existing (1 Jan-31 Dec): "&Prop2021DistTar!C52 -> Existing (1 Jan-31 Dec): Tariff V - Yarra Valley Residential | C66: =INDEX(Prop2021DistTar!$E$54:$E$74,C$33) -> 0.183 | D66: =INDEX(Prop2021DistTar!$E$54:$E$74,D$33) -> 10.42783213 | E66: =INDEX(Prop2021DistTar!$E$54:$E$74,E$33) -> 7.8394 | F66: =INDEX(Prop2021DistTar!$E$54:$E$74,F$33) -> 5.6037 | G66: =INDEX(Prop2021DistTar!$E$54:$E$74,G$33) -> 4.4204 | H66: =INDEX(Prop2021DistTar!$E$54:$E$74,H$33) -> 4.1198 | I66: =INDEX(Prop2021DistTar!$E$54:$E$74,I$33) -> 10.07910894 | J66: =INDEX(Prop2021DistTar!$E$54:$E$74,J$33) -> 7.6078 | K66: =INDEX(Prop2021DistTar!$E$54:$E$74,K$33) -> 5.4839 | L66: =INDEX(Prop2021DistTar!$E$54:$E$74,L$33) -> 4.3597 | M66: =INDEX(Prop2021DistTar!$E$54:$E$74,M$33) -> 4.0742 | N66: =INDEX(Prop2021DistTar!$E$54:$E$74,N$33) -> 10.07910894 | O66: =INDEX(Prop2021DistTar!$E$54:$E$74,O$33) -> 7.6078 | P66: =INDEX(Prop2021DistTar!$E$54:$E$74,P$33) -> 5.4839 | Q66: =INDEX(Prop2021DistTar!$E$54:$E$74,Q$33) -> 4.3597 | R66: =INDEX(Prop2021DistTar!$E$54:$E$74,R$33) -> 4.0742 | S66: =INDEX(Prop2021DistTar!$E$54:$E$74,S$33) -> 9.381868411 | T66: =INDEX(Prop2021DistTar!$E$54:$E$74,T$33) -> 7.1447 | U66: =INDEX(Prop2021DistTar!$E$54:$E$74,U$33) -> 5.2443 | V66: =INDEX(Prop2021DistTar!$E$54:$E$74,V$33) -> 4.2385 | W66: =INDEX(Prop2021DistTar!$E$54:$E$74,W$33) -> 3.9831
B68: ="Proposed (1 Jan-31 Dec): "&B62 -> Proposed (1 Jan-31 Dec): Tariff V - Yarra Valley Residential | C68: =INDEX(Prop2021DistTar!$D$54:$D$74,C$32) -> 0.183 | D68: =INDEX(Prop2021DistTar!$D$54:$D$74,D$32) -> 10.5832 | E68: =INDEX(Prop2021DistTar!$D$54:$D$74,E$32) -> 7.8394 | F68: =INDEX(Prop2021DistTar!$D$54:$D$74,F$32) -> 5.6037 | G68: =INDEX(Prop2021DistTar!$D$54:$D$74,G$32) -> 4.4204 | H68: =INDEX(Prop2021DistTar!$D$54:$D$74,H$32) -> 4.1198 | I68: =INDEX(Prop2021DistTar!$D$54:$D$74,I$32) -> 10.2293 | J68: =INDEX(Prop2021DistTar!$D$54:$D$74,J$32) -> 7.6078 | K68: =INDEX(Prop2021DistTar!$D$54:$D$74,K$32) -> 5.4839 | L68: =INDEX(Prop2021DistTar!$D$54:$D$74,L$32) -> 4.3597 | M68: =INDEX(Prop2021DistTar!$D$54:$D$74,M$32) -> 4.0742 | N68: =INDEX(Prop2021DistTar!$D$54:$D$74,N$32) -> 10.2293 | O68: =INDEX(Prop2021DistTar!$D$54:$D$74,O$32) -> 7.6078 | P68: =INDEX(Prop2021DistTar!$D$54:$D$74,P$32) -> 5.4839 | Q68: =INDEX(Prop2021DistTar!$D$54:$D$74,Q$32) -> 4.3597 | R68: =INDEX(Prop2021DistTar!$D$54:$D$74,R$32) -> 4.0742 | S68: =INDEX(Prop2021DistTar!$D$54:$D$74,S$32) -> 9.5216 | T68: =INDEX(Prop2021DistTar!$D$54:$D$74,T$32) -> 7.1447 | U68: =INDEX(Prop2021DistTar!$D$54:$D$74,U$32) -> 5.2443 | V68: =INDEX(Prop2021DistTar!$D$54:$D$74,V$32) -> 4.2385 | W68: =INDEX(Prop2021DistTar!$D$54:$D$74,W$32) -> 4.02
B70: Distribution volumes (actual) | C70: Fixed | D70: PkBlk1 | E70: PkBlk2 | F70: PkBlk3 | G70: PkBlk4 | H70: PkBlk5 | I70: Shd1Blk1 | J70: Shd1Blk2 | K70: Shd1Blk3 | L70: Shd1Blk4 | M70: Shd1Blk5 | N70: Shd2Blk1 | O70: Shd2Blk2 | P70: Shd2Blk3 | Q70: Shd2Blk4 | R70: Shd2Blk5 | S70: OPkBlk1 | T70: OPkBlk2 | U70: OPkBlk3 | V70: OPkBlk4 | W70: OPkBlk5
B72: =B66 -> Existing (1 Jan-31 Dec): Tariff V - Yarra Valley Residential | C72: =INDEX(Prop2021DistTar!$F$54:$F$74,C$32) -> 5537 | D72: =INDEX(Prop2021DistTar!$F$54:$F$74,D$32) -> 29459.10544 | E72: =INDEX(Prop2021DistTar!$F$54:$F$74,E$32) -> 24505.51594 | F72: =INDEX(Prop2021DistTar!$F$54:$F$74,F$32) -> 21468.78107 | G72: =INDEX(Prop2021DistTar!$F$54:$F$74,G$32) -> 34255.01449 | H72: =INDEX(Prop2021DistTar!$F$54:$F$74,H$32) -> 54673.23549 | I72: =INDEX(Prop2021DistTar!$F$54:$F$74,I$32) -> 7277.579999 | J72: =INDEX(Prop2021DistTar!$F$54:$F$74,J$32) -> 5670.975997 | K72: =INDEX(Prop2021DistTar!$F$54:$F$74,K$32) -> 4624.552002 | L72: =INDEX(Prop2021DistTar!$F$54:$F$74,L$32) -> 6965.616001 | M72: =INDEX(Prop2021DistTar!$F$54:$F$74,M$32) -> 10135.06899 | N72: =INDEX(Prop2021DistTar!$F$54:$F$74,N$32) -> 7302.753004 | O72: =INDEX(Prop2021DistTar!$F$54:$F$74,O$32) -> 5511.655961 | P72: =INDEX(Prop2021DistTar!$F$54:$F$74,P$32) -> 4069.010982 | Q72: =INDEX(Prop2021DistTar!$F$54:$F$74,Q$32) -> 4307.866009 | R72: =INDEX(Prop2021DistTar!$F$54:$F$74,R$32) -> 3897.993989 | S72: =INDEX(Prop2021DistTar!$F$54:$F$74,S$32) -> 32879.85334 | T72: =INDEX(Prop2021DistTar!$F$54:$F$74,T$32) -> 13748.0909 | U72: =INDEX(Prop2021DistTar!$F$54:$F$74,U$32) -> 6315.282053 | V72: =INDEX(Prop2021DistTar!$F$54:$F$74,V$32) -> 4640.763024 | W72: =INDEX(Prop2021DistTar!$F$54:$F$74,W$32) -> 7380.860026
B74: =B68 -> Proposed (1 Jan-31 Dec): Tariff V - Yarra Valley Residential | C74: =INDEX(Prop2021DistTar!$F$54:$F$74,C$32) -> 5537 | D74: =INDEX(Prop2021DistTar!$F$54:$F$74,D$32) -> 29459.10544 | E74: =INDEX(Prop2021DistTar!$F$54:$F$74,E$32) -> 24505.51594 | F74: =INDEX(Prop2021DistTar!$F$54:$F$74,F$32) -> 21468.78107 | G74: =INDEX(Prop2021DistTar!$F$54:$F$74,G$32) -> 34255.01449 | H74: =INDEX(Prop2021DistTar!$F$54:$F$74,H$32) -> 54673.23549 | I74: =INDEX(Prop2021DistTar!$F$54:$F$74,I$32) -> 7277.579999 | J74: =INDEX(Prop2021DistTar!$F$54:$F$74,J$32) -> 5670.975997 | K74: =INDEX(Prop2021DistTar!$F$54:$F$74,K$32) -> 4624.552002 | L74: =INDEX(Prop2021DistTar!$F$54:$F$74,L$32) -> 6965.616001 | M74: =INDEX(Prop2021DistTar!$F$54:$F$74,M$32) -> 10135.06899 | N74: =INDEX(Prop2021DistTar!$F$54:$F$74,N$32) -> 7302.753004 | O74: =INDEX(Prop2021DistTar!$F$54:$F$74,O$32) -> 5511.655961 | P74: =INDEX(Prop2021DistTar!$F$54:$F$74,P$32) -> 4069.010982 | Q74: =INDEX(Prop2021DistTar!$F$54:$F$74,Q$32) -> 4307.866009 | R74: =INDEX(Prop2021DistTar!$F$54:$F$74,R$32) -> 3897.993989 | S74: =INDEX(Prop2021DistTar!$F$54:$F$74,S$32) -> 32879.85334 | T74: =INDEX(Prop2021DistTar!$F$54:$F$74,T$32) -> 13748.0909 | U74: =INDEX(Prop2021DistTar!$F$54:$F$74,U$32) -> 6315.282053 | V74: =INDEX(Prop2021DistTar!$F$54:$F$74,V$32) -> 4640.763024 | W74: =INDEX(Prop2021DistTar!$F$54:$F$74,W$32) -> 7380.860026
B76: Distribution revenue | C76: Fixed | D76: PkBlk1 | E76: PkBlk2 | F76: PkBlk3 | G76: PkBlk4 | H76: PkBlk5 | I76: Shd1Blk1 | J76: Shd1Blk2 | K76: Shd1Blk3 | L76: Shd1Blk4 | M76: Shd1Blk5 | N76: Shd2Blk1 | O76: Shd2Blk2 | P76: Shd2Blk3 | Q76: Shd2Blk4 | R76: Shd2Blk5 | S76: OPkBlk1 | T76: OPkBlk2 | U76: OPkBlk3 | V76: OPkBlk4 | W76: OPkBlk5
B78: =B72 -> Existing (1 Jan-31 Dec): Tariff V - Yarra Valley Residential | C78: =INDEX(Prop2021DistTar!$H$54:$H$74,C$33) -> 369843.915 | D78: =INDEX(Prop2021DistTar!$H$54:$H$74,D$33) -> 307194.6061 | E78: =INDEX(Prop2021DistTar!$H$54:$H$74,E$33) -> 192108.5417 | F78: =INDEX(Prop2021DistTar!$H$54:$H$74,F$33) -> 120304.6085 | G78: =INDEX(Prop2021DistTar!$H$54:$H$74,G$33) -> 151420.8661 | H78: =INDEX(Prop2021DistTar!$H$54:$H$74,H$33) -> 225242.7956 | I78: =INDEX(Prop2021DistTar!$H$54:$H$74,I$33) -> 73351.5216 | J78: =INDEX(Prop2021DistTar!$H$54:$H$74,J$33) -> 43143.65119 | K78: =INDEX(Prop2021DistTar!$H$54:$H$74,K$33) -> 25360.58072 | L78: =INDEX(Prop2021DistTar!$H$54:$H$74,L$33) -> 30367.99608 | M78: =INDEX(Prop2021DistTar!$H$54:$H$74,M$33) -> 41292.29807 | N78: =INDEX(Prop2021DistTar!$H$54:$H$74,N$33) -> 73605.24306 | O78: =INDEX(Prop2021DistTar!$H$54:$H$74,O$33) -> 41931.57622 | P78: =INDEX(Prop2021DistTar!$H$54:$H$74,P$33) -> 22314.04933 | Q78: =INDEX(Prop2021DistTar!$H$54:$H$74,Q$33) -> 18781.00344 | R78: =INDEX(Prop2021DistTar!$H$54:$H$74,R$33) -> 15881.20711 | S78: =INDEX(Prop2021DistTar!$H$54:$H$74,S$33) -> 308474.4575 | T78: =INDEX(Prop2021DistTar!$H$54:$H$74,T$33) -> 98225.98508 | U78: =INDEX(Prop2021DistTar!$H$54:$H$74,U$33) -> 33119.23367 | V78: =INDEX(Prop2021DistTar!$H$54:$H$74,V$33) -> 19669.87408 | W78: =INDEX(Prop2021DistTar!$H$54:$H$74,W$33) -> 29398.70357
B80: =B74 -> Proposed (1 Jan-31 Dec): Tariff V - Yarra Valley Residential | C80: =INDEX(Prop2021DistTar!$G$54:$G$74,C$32) -> 369843.915 | D80: =INDEX(Prop2021DistTar!$G$54:$G$74,D$32) -> 311771.6047 | E80: =INDEX(Prop2021DistTar!$G$54:$G$74,E$32) -> 192108.5417 | F80: =INDEX(Prop2021DistTar!$G$54:$G$74,F$32) -> 120304.6085 | G80: =INDEX(Prop2021DistTar!$G$54:$G$74,G$32) -> 151420.8661 | H80: =INDEX(Prop2021DistTar!$G$54:$G$74,H$32) -> 225242.7956 | I80: =INDEX(Prop2021DistTar!$G$54:$G$74,I$32) -> 74444.54909 | J80: =INDEX(Prop2021DistTar!$G$54:$G$74,J$32) -> 43143.65119 | K80: =INDEX(Prop2021DistTar!$G$54:$G$74,K$32) -> 25360.58072 | L80: =INDEX(Prop2021DistTar!$G$54:$G$74,L$32) -> 30367.99608 | M80: =INDEX(Prop2021DistTar!$G$54:$G$74,M$32) -> 41292.29807 | N80: =INDEX(Prop2021DistTar!$G$54:$G$74,N$32) -> 74702.0513 | O80: =INDEX(Prop2021DistTar!$G$54:$G$74,O$32) -> 41931.57622 | P80: =INDEX(Prop2021DistTar!$G$54:$G$74,P$32) -> 22314.04933 | Q80: =INDEX(Prop2021DistTar!$G$54:$G$74,Q$32) -> 18781.00344 | R80: =INDEX(Prop2021DistTar!$G$54:$G$74,R$32) -> 15881.20711 | S80: =INDEX(Prop2021DistTar!$G$54:$G$74,S$32) -> 313068.8116 | T80: =INDEX(Prop2021DistTar!$G$54:$G$74,T$32) -> 98225.98508 | U80: =INDEX(Prop2021DistTar!$G$54:$G$74,U$32) -> 33119.23367 | V80: =INDEX(Prop2021DistTar!$G$54:$G$74,V$32) -> 19669.87408 | W80: =INDEX(Prop2021DistTar!$G$54:$G$74,W$32) -> 29671.05731
B82: Revenue | C82: Total
B83: =B78 -> Existing (1 Jan-31 Dec): Tariff V - Yarra Valley Residential | C83: =SUM(C78:W78) -> 2241032.714
B84: =B80 -> Proposed (1 Jan-31 Dec): Tariff V - Yarra Valley Residential | C84: =SUM(C80:W80) -> 2252666.256
B86: Average price movement | C86: =IF(C84=0,"",C84/C83) -> 1.005191152
B88: =IF(C86="","",IF(C86<=$C$13,"REBALANCING CONTROL COMPLIANT","REBALANCING CONTROL BREACHED")) -> REBALANCING CONTROL COMPLIANT
B92: =Prop2021DistTar!B98 -> Tariff V - South Gippsland Residential | C92: 1 | D92: 2 | E92: 3 | F92: 4 | G92: 5 | H92: 6 | I92: 7 | J92: 8 | K92: 9 | L92: 10 | M92: 11 | N92: 12 | O92: 13 | P92: 14 | Q92: 15 | R92: 16 | S92: 17 | T92: 18 | U92: 19 | V92: 20 | W92: 21
C93: 1 | D93: 2 | E93: 3 | F93: 4 | G93: 5 | H93: 6 | I93: 7 | J93: 8 | K93: 9 | L93: 10 | M93: 11 | N93: 12 | O93: 13 | P93: 14 | Q93: 15 | R93: 16 | S93: 17 | T93: 18 | U93: 19 | V93: 20 | W93: 21
B94: Distribution tariff | C94: Fixed | D94: PkBlk1 | E94: PkBlk2 | F94: PkBlk3 | G94: PkBlk4 | H94: PkBlk5 | I94: Shd1Blk1 | J94: Shd1Blk2 | K94: Shd1Blk3 | L94: Shd1Blk4 | M94: Shd1Blk5 | N94: Shd2Blk1 | O94: Shd2Blk2 | P94: Shd2Blk3 | Q94: Shd2Blk4 | R94: Shd2Blk5 | S94: OPkBlk1 | T94: OPkBlk2 | U94: OPkBlk3 | V94: OPkBlk4 | W94: OPkBlk5
B96: ="Existing (1 Jan-31 Dec): "&Prop2021DistTar!C98 -> Existing (1 Jan-31 Dec): Tariff V - South Gippsland Residential | C96: =INDEX(Prop2021DistTar!$E$100:$E$120,C$33) -> 0.183 | D96: =INDEX(Prop2021DistTar!$E$100:$E$120,D$33) -> 11.34884013 | E96: =INDEX(Prop2021DistTar!$E$100:$E$120,E$33) -> 8.5804 | F96: =INDEX(Prop2021DistTar!$E$100:$E$120,F$33) -> 6.2062 | G96: =INDEX(Prop2021DistTar!$E$100:$E$120,G$33) -> 4.9497 | H96: =INDEX(Prop2021DistTar!$E$100:$E$120,H$33) -> 4.6306 | I96: =INDEX(Prop2021DistTar!$E$100:$E$120,I$33) -> 10.97839894 | J96: =INDEX(Prop2021DistTar!$E$100:$E$120,J$33) -> 8.3346 | K96: =INDEX(Prop2021DistTar!$E$100:$E$120,K$33) -> 6.079 | L96: =INDEX(Prop2021DistTar!$E$100:$E$120,L$33) -> 4.8853 | M96: =INDEX(Prop2021DistTar!$E$100:$E$120,M$33) -> 4.582 | N96: =INDEX(Prop2021DistTar!$E$100:$E$120,N$33) -> 10.97839894 | O96: =INDEX(Prop2021DistTar!$E$100:$E$120,O$33) -> 8.3346 | P96: =INDEX(Prop2021DistTar!$E$100:$E$120,P$33) -> 6.079 | Q96: =INDEX(Prop2021DistTar!$E$100:$E$120,Q$33) -> 4.8853 | R96: =INDEX(Prop2021DistTar!$E$100:$E$120,R$33) -> 4.582 | S96: =INDEX(Prop2021DistTar!$E$100:$E$120,S$33) -> 10.23813412 | T96: =INDEX(Prop2021DistTar!$E$100:$E$120,T$33) -> 7.8428 | U96: =INDEX(Prop2021DistTar!$E$100:$E$120,U$33) -> 5.8247 | V96: =INDEX(Prop2021DistTar!$E$100:$E$120,V$33) -> 4.7565 | W96: =INDEX(Prop2021DistTar!$E$100:$E$120,W$33) -> 4.4852
B98: ="Proposed (1 Jan-31 Dec): "&B92 -> Proposed (1 Jan-31 Dec): Tariff V - South Gippsland Residential | C98: =INDEX(Prop2021DistTar!$D$100:$D$120,C$32) -> 0.183 | D98: =INDEX(Prop2021DistTar!$D$100:$D$120,D$32) -> 11.5179 | E98: =INDEX(Prop2021DistTar!$D$100:$D$120,E$32) -> 8.5804 | F98: =INDEX(Prop2021DistTar!$D$100:$D$120,F$32) -> 6.2062 | G98: =INDEX(Prop2021DistTar!$D$100:$D$120,G$32) -> 4.9497 | H98: =INDEX(Prop2021DistTar!$D$100:$D$120,H$32) -> 4.6306 | I98: =INDEX(Prop2021DistTar!$D$100:$D$120,I$32) -> 11.1419 | J98: =INDEX(Prop2021DistTar!$D$100:$D$120,J$32) -> 8.3346 | K98: =INDEX(Prop2021DistTar!$D$100:$D$120,K$32) -> 6.079 | L98: =INDEX(Prop2021DistTar!$D$100:$D$120,L$32) -> 4.8853 | M98: =INDEX(Prop2021DistTar!$D$100:$D$120,M$32) -> 4.582 | N98: =INDEX(Prop2021DistTar!$D$100:$D$120,N$32) -> 11.1419 | O98: =INDEX(Prop2021DistTar!$D$100:$D$120,O$32) -> 8.3346 | P98: =INDEX(Prop2021DistTar!$D$100:$D$120,P$32) -> 6.079 | Q98: =INDEX(Prop2021DistTar!$D$100:$D$120,Q$32) -> 4.8853 | R98: =INDEX(Prop2021DistTar!$D$100:$D$120,R$32) -> 4.582 | S98: =INDEX(Prop2021DistTar!$D$100:$D$120,S$32) -> 10.3907 | T98: =INDEX(Prop2021DistTar!$D$100:$D$120,T$32) -> 7.8428 | U98: =INDEX(Prop2021DistTar!$D$100:$D$120,U$32) -> 5.8247 | V98: =INDEX(Prop2021DistTar!$D$100:$D$120,V$32) -> 4.7565 | W98: =INDEX(Prop2021DistTar!$D$100:$D$120,W$32) -> 4.4852
B100: Distribution volumes (actual) | C100: Fixed | D100: PkBlk1 | E100: PkBlk2 | F100: PkBlk3 | G100: PkBlk4 | H100: PkBlk5 | I100: Shd1Blk1 | J100: Shd1Blk2 | K100: Shd1Blk3 | L100: Shd1Blk4 | M100: Shd1Blk5 | N100: Shd2Blk1 | O100: Shd2Blk2 | P100: Shd2Blk3 | Q100: Shd2Blk4 | R100: Shd2Blk5 | S100: OPkBlk1 | T100: OPkBlk2 | U100: OPkBlk3 | V100: OPkBlk4 | W100: OPkBlk5
B102: =B96 -> Existing (1 Jan-31 Dec): Tariff V - South Gippsland Residential | C102: =INDEX(Prop2021DistTar!$F$100:$F$120,C$32) -> 5708 | D102: =INDEX(Prop2021DistTar!$F$100:$F$120,D$32) -> 26360.13107 | E102: =INDEX(Prop2021DistTar!$F$100:$F$120,E$32) -> 19423.85709 | F102: =INDEX(Prop2021DistTar!$F$100:$F$120,F$32) -> 15284.09312 | G102: =INDEX(Prop2021DistTar!$F$100:$F$120,G$32) -> 20405.66306 | H102: =INDEX(Prop2021DistTar!$F$100:$F$120,H$32) -> 19711.75996 | I102: =INDEX(Prop2021DistTar!$F$100:$F$120,I$32) -> 6353.872943 | J102: =INDEX(Prop2021DistTar!$F$100:$F$120,J$32) -> 4036.703906 | K102: =INDEX(Prop2021DistTar!$F$100:$F$120,K$32) -> 2520.944998 | L102: =INDEX(Prop2021DistTar!$F$100:$F$120,L$32) -> 2164.351032 | M102: =INDEX(Prop2021DistTar!$F$100:$F$120,M$32) -> 1794.904 | N102: =INDEX(Prop2021DistTar!$F$100:$F$120,N$32) -> 6264.935036 | O102: =INDEX(Prop2021DistTar!$F$100:$F$120,O$32) -> 3603.681016 | P102: =INDEX(Prop2021DistTar!$F$100:$F$120,P$32) -> 2054.350024 | Q102: =INDEX(Prop2021DistTar!$F$100:$F$120,Q$32) -> 1707.727965 | R102: =INDEX(Prop2021DistTar!$F$100:$F$120,R$32) -> 1161.538998 | S102: =INDEX(Prop2021DistTar!$F$100:$F$120,S$32) -> 25322.99669 | T102: =INDEX(Prop2021DistTar!$F$100:$F$120,T$32) -> 8409.750183 | U102: =INDEX(Prop2021DistTar!$F$100:$F$120,U$32) -> 3906.752057 | V102: =INDEX(Prop2021DistTar!$F$100:$F$120,V$32) -> 2847.627087 | W102: =INDEX(Prop2021DistTar!$F$100:$F$120,W$32) -> 5002.128026
B104: =B98 -> Proposed (1 Jan-31 Dec): Tariff V - South Gippsland Residential | C104: =INDEX(Prop2021DistTar!$F$100:$F$120,C$32) -> 5708 | D104: =INDEX(Prop2021DistTar!$F$100:$F$120,D$32) -> 26360.13107 | E104: =INDEX(Prop2021DistTar!$F$100:$F$120,E$32) -> 19423.85709 | F104: =INDEX(Prop2021DistTar!$F$100:$F$120,F$32) -> 15284.09312 | G104: =INDEX(Prop2021DistTar!$F$100:$F$120,G$32) -> 20405.66306 | H104: =INDEX(Prop2021DistTar!$F$100:$F$120,H$32) -> 19711.75996 | I104: =INDEX(Prop2021DistTar!$F$100:$F$120,I$32) -> 6353.872943 | J104: =INDEX(Prop2021DistTar!$F$100:$F$120,J$32) -> 4036.703906 | K104: =INDEX(Prop2021DistTar!$F$100:$F$120,K$32) -> 2520.944998 | L104: =INDEX(Prop2021DistTar!$F$100:$F$120,L$32) -> 2164.351032 | M104: =INDEX(Prop2021DistTar!$F$100:$F$120,M$32) -> 1794.904 | N104: =INDEX(Prop2021DistTar!$F$100:$F$120,N$32) -> 6264.935036 | O104: =INDEX(Prop2021DistTar!$F$100:$F$120,O$32) -> 3603.681016 | P104: =INDEX(Prop2021DistTar!$F$100:$F$120,P$32) -> 2054.350024 | Q104: =INDEX(Prop2021DistTar!$F$100:$F$120,Q$32) -> 1707.727965 | R104: =INDEX(Prop2021DistTar!$F$100:$F$120,R$32) -> 1161.538998 | S104: =INDEX(Prop2021DistTar!$F$100:$F$120,S$32) -> 25322.99669 | T104: =INDEX(Prop2021DistTar!$F$100:$F$120,T$32) -> 8409.750183 | U104: =INDEX(Prop2021DistTar!$F$100:$F$120,U$32) -> 3906.752057 | V104: =INDEX(Prop2021DistTar!$F$100:$F$120,V$32) -> 2847.627087 | W104: =INDEX(Prop2021DistTar!$F$100:$F$120,W$32) -> 5002.128026
B106: Distribution revenue | C106: Fixed | D106: PkBlk1 | E106: PkBlk2 | F106: PkBlk3 | G106: PkBlk4 | H106: PkBlk5 | I106: Shd1Blk1 | J106: Shd1Blk2 | K106: Shd1Blk3 | L106: Shd1Blk4 | M106: Shd1Blk5 | N106: Shd2Blk1 | O106: Shd2Blk2 | P106: Shd2Blk3 | Q106: Shd2Blk4 | R106: Shd2Blk5 | S106: OPkBlk1 | T106: OPkBlk2 | U106: OPkBlk3 | V106: OPkBlk4 | W106: OPkBlk5
B108: =B102 -> Existing (1 Jan-31 Dec): Tariff V - South Gippsland Residential | C108: =INDEX(Prop2021DistTar!$H$100:$H$120,C$33) -> 381265.86 | D108: =INDEX(Prop2021DistTar!$H$100:$H$120,D$33) -> 299156.9133 | E108: =INDEX(Prop2021DistTar!$H$100:$H$120,E$33) -> 166664.4633 | F108: =INDEX(Prop2021DistTar!$H$100:$H$120,F$33) -> 94856.13873 | G108: =INDEX(Prop2021DistTar!$H$100:$H$120,G$33) -> 101001.9105 | H108: =INDEX(Prop2021DistTar!$H$100:$H$120,H$33) -> 91277.27565 | I108: =INDEX(Prop2021DistTar!$H$100:$H$120,I$33) -> 69755.35196 | J108: =INDEX(Prop2021DistTar!$H$100:$H$120,J$33) -> 33644.31238 | K108: =INDEX(Prop2021DistTar!$H$100:$H$120,K$33) -> 15324.82464 | L108: =INDEX(Prop2021DistTar!$H$100:$H$120,L$33) -> 10573.5041 | M108: =INDEX(Prop2021DistTar!$H$100:$H$120,M$33) -> 8224.25013 | N108: =INDEX(Prop2021DistTar!$H$100:$H$120,N$33) -> 68778.95614 | O108: =INDEX(Prop2021DistTar!$H$100:$H$120,O$33) -> 30035.2398 | P108: =INDEX(Prop2021DistTar!$H$100:$H$120,P$33) -> 12488.3938 | Q108: =INDEX(Prop2021DistTar!$H$100:$H$120,Q$33) -> 8342.763428 | R108: =INDEX(Prop2021DistTar!$H$100:$H$120,R$33) -> 5322.171691 | S108: =INDEX(Prop2021DistTar!$H$100:$H$120,S$33) -> 259260.2365 | T108: =INDEX(Prop2021DistTar!$H$100:$H$120,T$33) -> 65955.98874 | U108: =INDEX(Prop2021DistTar!$H$100:$H$120,U$33) -> 22755.65871 | V108: =INDEX(Prop2021DistTar!$H$100:$H$120,V$33) -> 13544.73824 | W108: =INDEX(Prop2021DistTar!$H$100:$H$120,W$33) -> 22435.54462
B110: =B104 -> Proposed (1 Jan-31 Dec): Tariff V - South Gippsland Residential | C110: =INDEX(Prop2021DistTar!$G$100:$G$120,C$32) -> 381265.86 | D110: =INDEX(Prop2021DistTar!$G$100:$G$120,D$32) -> 303613.3536 | E110: =INDEX(Prop2021DistTar!$G$100:$G$120,E$32) -> 166664.4633 | F110: =INDEX(Prop2021DistTar!$G$100:$G$120,F$32) -> 94856.13873 | G110: =INDEX(Prop2021DistTar!$G$100:$G$120,G$32) -> 101001.9105 | H110: =INDEX(Prop2021DistTar!$G$100:$G$120,H$32) -> 91277.27565 | I110: =INDEX(Prop2021DistTar!$G$100:$G$120,I$32) -> 70794.21694 | J110: =INDEX(Prop2021DistTar!$G$100:$G$120,J$32) -> 33644.31238 | K110: =INDEX(Prop2021DistTar!$G$100:$G$120,K$32) -> 15324.82464 | L110: =INDEX(Prop2021DistTar!$G$100:$G$120,L$32) -> 10573.5041 | M110: =INDEX(Prop2021DistTar!$G$100:$G$120,M$32) -> 8224.25013 | N110: =INDEX(Prop2021DistTar!$G$100:$G$120,N$32) -> 69803.27967 | O110: =INDEX(Prop2021DistTar!$G$100:$G$120,O$32) -> 30035.2398 | P110: =INDEX(Prop2021DistTar!$G$100:$G$120,P$32) -> 12488.3938 | Q110: =INDEX(Prop2021DistTar!$G$100:$G$120,Q$32) -> 8342.763428 | R110: =INDEX(Prop2021DistTar!$G$100:$G$120,R$32) -> 5322.171691 | S110: =INDEX(Prop2021DistTar!$G$100:$G$120,S$32) -> 263123.6617 | T110: =INDEX(Prop2021DistTar!$G$100:$G$120,T$32) -> 65955.98874 | U110: =INDEX(Prop2021DistTar!$G$100:$G$120,U$32) -> 22755.65871 | V110: =INDEX(Prop2021DistTar!$G$100:$G$120,V$32) -> 13544.73824 | W110: =INDEX(Prop2021DistTar!$G$100:$G$120,W$32) -> 22435.54462
B112: Revenue | C112: Total
B113: =B108 -> Existing (1 Jan-31 Dec): Tariff V - South Gippsland Residential | C113: =SUM(C108:W108) -> 1780664.496
B114: =B110 -> Proposed (1 Jan-31 Dec): Tariff V - South Gippsland Residential | C114: =SUM(C110:W110) -> 1791047.55
B116: Average price movement | C116: =IF(C114=0,"",C114/C113) -> 1.005831
B118: =IF(C116="","",IF(C116<=$C$13,"REBALANCING CONTROL COMPLIANT","REBALANCING CONTROL BREACHED")) -> REBALANCING CONTROL COMPLIANT
B122: =Prop2021DistTar!B29 -> Tariff V - Multinet Non-Residential | C122: 1 | D122: 2 | E122: 3 | F122: 4 | G122: 5 | S122: 6 | T122: 7 | U122: 8 | V122: 9
C123: 1 | D123: 2 | E123: 3 | F123: 4 | G123: 5 | H123: 6 | I123: 7 | J123: 8 | K123: 9 | L123: 10 | M123: 11 | S123: 12 | T123: 13 | U123: 14 | V123: 15 | W123: 16
B124: Distribution tariff | C124: Fixed | D124: PkBlk1 | E124: PkBlk2 | F124: PkBlk3 | G124: PkBlk4 | H124: PkBlk5 | I124: Shd1Blk1 | J124: Shd1Blk2 | K124: Shd1Blk3 | L124: Shd1Blk4 | M124: Shd1Blk5 | N124: Shd2Blk1 | O124: Shd2Blk2 | P124: Shd2Blk3 | Q124: Shd2Blk4 | R124: Shd2Blk5 | S124: OPkBlk1 | T124: OPkBlk2 | U124: OPkBlk3 | V124: OPkBlk4 | W124: OPkBlk5
B126: ="Existing (1 Jan - 31 Dec): "&Prop2021DistTar!C29 -> Existing (1 Jan - 31 Dec): Tariff V - Multinet Non-Residential | C126: =INDEX(Prop2021DistTar!$E$31:$E$51,C$33) -> 0.3018 | D126: =INDEX(Prop2021DistTar!$E$31:$E$51,D$33) -> 3.99611251 | E126: =INDEX(Prop2021DistTar!$E$31:$E$51,E$33) -> 2.3486 | F126: =INDEX(Prop2021DistTar!$E$31:$E$51,F$33) -> 1.4092 | G126: =INDEX(Prop2021DistTar!$E$31:$E$51,G$33) -> 0.7842 | H126: =INDEX(Prop2021DistTar!$E$31:$E$51,H$33) -> 0.2617 | I126: =INDEX(Prop2021DistTar!$E$31:$E$51,I$33) -> 3.66735753 | J126: =INDEX(Prop2021DistTar!$E$31:$E$51,J$33) -> 2.1139 | K126: =INDEX(Prop2021DistTar!$E$31:$E$51,K$33) -> 1.3387 | L126: =INDEX(Prop2021DistTar!$E$31:$E$51,L$33) -> 0.7641 | M126: =INDEX(Prop2021DistTar!$E$31:$E$51,M$33) -> 0.2353 | N126: =INDEX(Prop2021DistTar!$E$31:$E$51,N$33) -> 3.66735753 | O126: =INDEX(Prop2021DistTar!$E$31:$E$51,O$33) -> 2.1139 | P126: =INDEX(Prop2021DistTar!$E$31:$E$51,P$33) -> 1.3387 | Q126: =INDEX(Prop2021DistTar!$E$31:$E$51,Q$33) -> 0.7641 | R126: =INDEX(Prop2021DistTar!$E$31:$E$51,R$33) -> 0.2353 | S126: =INDEX(Prop2021DistTar!$E$31:$E$51,S$33) -> 3.326045221 | T126: =INDEX(Prop2021DistTar!$E$31:$E$51,T$33) -> 2.0411 | U126: =INDEX(Prop2021DistTar!$E$31:$E$51,U$33) -> 1.2218 | V126: =INDEX(Prop2021DistTar!$E$31:$E$51,V$33) -> 0.7404 | W126: =INDEX(Prop2021DistTar!$E$31:$E$51,W$33) -> 0.2091
B128: ="Proposed (1 Jan-31 Dec): "&B122 -> Proposed (1 Jan-31 Dec): Tariff V - Multinet Non-Residential | C128: =INDEX(Prop2021DistTar!$D$31:$D$51,C$32) -> 0.3018 | D128: =INDEX(Prop2021DistTar!$D$31:$D$51,D$32) -> 4.0556 | E128: =INDEX(Prop2021DistTar!$D$31:$D$51,E$32) -> 2.3486 | F128: =INDEX(Prop2021DistTar!$D$31:$D$51,F$32) -> 1.4092 | G128: =INDEX(Prop2021DistTar!$D$31:$D$51,G$32) -> 0.7842 | H128: =INDEX(Prop2021DistTar!$D$31:$D$51,H$32) -> 0.2617 | I128: =INDEX(Prop2021DistTar!$D$31:$D$51,I$32) -> 3.722 | J128: =INDEX(Prop2021DistTar!$D$31:$D$51,J$32) -> 2.1139 | K128: =INDEX(Prop2021DistTar!$D$31:$D$51,K$32) -> 1.3387 | L128: =INDEX(Prop2021DistTar!$D$31:$D$51,L$32) -> 0.7641 | M128: =INDEX(Prop2021DistTar!$D$31:$D$51,M$32) -> 0.2353 | N128: =INDEX(Prop2021DistTar!$D$31:$D$51,N$32) -> 3.722 | O128: =INDEX(Prop2021DistTar!$D$31:$D$51,O$32) -> 2.1139 | P128: =INDEX(Prop2021DistTar!$D$31:$D$51,P$32) -> 1.3387 | Q128: =INDEX(Prop2021DistTar!$D$31:$D$51,Q$32) -> 0.7641 | R128: =INDEX(Prop2021DistTar!$D$31:$D$51,R$32) -> 0.2353 | S128: =INDEX(Prop2021DistTar!$D$31:$D$51,S$32) -> 3.3756 | T128: =INDEX(Prop2021DistTar!$D$31:$D$51,T$32) -> 2.0411 | U128: =INDEX(Prop2021DistTar!$D$31:$D$51,U$32) -> 1.2218 | V128: =INDEX(Prop2021DistTar!$D$31:$D$51,V$32) -> 0.7404 | W128: =INDEX(Prop2021DistTar!$D$31:$D$51,W$32) -> 0.2091
B130: Distribution volumes (actual) | C130: Fixed | D130: PkBlk1 | E130: PkBlk2 | F130: PkBlk3 | G130: PkBlk4 | H130: PkBlk5 | I130: Shd1Blk1 | J130: Shd1Blk2 | K130: Shd1Blk3 | L130: Shd1Blk4 | M130: Shd1Blk5 | N130: Shd2Blk1 | O130: Shd2Blk2 | P130: Shd2Blk3 | Q130: Shd2Blk4 | R130: Shd2Blk5 | S130: OPkBlk1 | T130: OPkBlk2 | U130: OPkBlk3 | V130: OPkBlk4 | W130: OPkBlk5
B132: =B126 -> Existing (1 Jan - 31 Dec): Tariff V - Multinet Non-Residential | C132: =INDEX(Prop2021DistTar!$F$31:$F$51,C$32) -> 15954 | D132: =INDEX(Prop2021DistTar!$F$31:$F$51,D$32) -> 311065.4927 | E132: =INDEX(Prop2021DistTar!$F$31:$F$51,E$32) -> 511137.5329 | F132: =INDEX(Prop2021DistTar!$F$31:$F$51,F$32) -> 201892.0276 | G132: =INDEX(Prop2021DistTar!$F$31:$F$51,G$32) -> 692403.0209 | H132: =INDEX(Prop2021DistTar!$F$31:$F$51,H$32) -> 899358.9023 | I132: =INDEX(Prop2021DistTar!$F$31:$F$51,I$32) -> 74302.65296 | J132: =INDEX(Prop2021DistTar!$F$31:$F$51,J$32) -> 115553.004 | K132: =INDEX(Prop2021DistTar!$F$31:$F$51,K$32) -> 44583.31101 | L132: =INDEX(Prop2021DistTar!$F$31:$F$51,L$32) -> 145396.419 | M132: =INDEX(Prop2021DistTar!$F$31:$F$51,M$32) -> 149477.1699 | N132: =INDEX(Prop2021DistTar!$F$31:$F$51,N$32) -> 72262.05702 | O132: =INDEX(Prop2021DistTar!$F$31:$F$51,O$32) -> 111702.0019 | P132: =INDEX(Prop2021DistTar!$F$31:$F$51,P$32) -> 44153.80601 | Q132: =INDEX(Prop2021DistTar!$F$31:$F$51,Q$32) -> 145933.339 | R132: =INDEX(Prop2021DistTar!$F$31:$F$51,R$32) -> 157757.089 | S132: =INDEX(Prop2021DistTar!$F$31:$F$51,S$32) -> 355008.2872 | T132: =INDEX(Prop2021DistTar!$F$31:$F$51,T$32) -> 533680.3912 | U132: =INDEX(Prop2021DistTar!$F$31:$F$51,U$32) -> 200341.9361 | V132: =INDEX(Prop2021DistTar!$F$31:$F$51,V$32) -> 591353.1109 | W132: =INDEX(Prop2021DistTar!$F$31:$F$51,W$32) -> 514465.112
B134: =B128 -> Proposed (1 Jan-31 Dec): Tariff V - Multinet Non-Residential | C134: =INDEX(Prop2021DistTar!$F$31:$F$51,C$32) -> 15954 | D134: =INDEX(Prop2021DistTar!$F$31:$F$51,D$32) -> 311065.4927 | E134: =INDEX(Prop2021DistTar!$F$31:$F$51,E$32) -> 511137.5329 | F134: =INDEX(Prop2021DistTar!$F$31:$F$51,F$32) -> 201892.0276 | G134: =INDEX(Prop2021DistTar!$F$31:$F$51,G$32) -> 692403.0209 | H134: =INDEX(Prop2021DistTar!$F$31:$F$51,H$32) -> 899358.9023 | I134: =INDEX(Prop2021DistTar!$F$31:$F$51,I$32) -> 74302.65296 | J134: =INDEX(Prop2021DistTar!$F$31:$F$51,J$32) -> 115553.004 | K134: =INDEX(Prop2021DistTar!$F$31:$F$51,K$32) -> 44583.31101 | L134: =INDEX(Prop2021DistTar!$F$31:$F$51,L$32) -> 145396.419 | M134: =INDEX(Prop2021DistTar!$F$31:$F$51,M$32) -> 149477.1699 | N134: =INDEX(Prop2021DistTar!$F$31:$F$51,N$32) -> 72262.05702 | O134: =INDEX(Prop2021DistTar!$F$31:$F$51,O$32) -> 111702.0019 | P134: =INDEX(Prop2021DistTar!$F$31:$F$51,P$32) -> 44153.80601 | Q134: =INDEX(Prop2021DistTar!$F$31:$F$51,Q$32) -> 145933.339 | R134: =INDEX(Prop2021DistTar!$F$31:$F$51,R$32) -> 157757.089 | S134: =INDEX(Prop2021DistTar!$F$31:$F$51,S$32) -> 355008.2872 | T134: =INDEX(Prop2021DistTar!$F$31:$F$51,T$32) -> 533680.3912 | U134: =INDEX(Prop2021DistTar!$F$31:$F$51,U$32) -> 200341.9361 | V134: =INDEX(Prop2021DistTar!$F$31:$F$51,V$32) -> 591353.1109 | W134: =INDEX(Prop2021DistTar!$F$31:$F$51,W$32) -> 514465.112
B136: Distribution revenue | C136: Fixed | D136: PkBlk1 | E136: PkBlk2 | F136: PkBlk3 | G136: PkBlk4 | H136: PkBlk5 | I136: Shd1Blk1 | J136: Shd1Blk2 | K136: Shd1Blk3 | L136: Shd1Blk4 | M136: Shd1Blk5 | N136: Shd2Blk1 | O136: Shd2Blk2 | P136: Shd2Blk3 | Q136: Shd2Blk4 | R136: Shd2Blk5 | S136: OPkBlk1 | T136: OPkBlk2 | U136: OPkBlk3 | V136: OPkBlk4 | W136: OPkBlk5
B138: =B132 -> Existing (1 Jan - 31 Dec): Tariff V - Multinet Non-Residential | C138: =INDEX(Prop2021DistTar!$H$31:$H$51,C$33) -> 1757444.778 | D138: =INDEX(Prop2021DistTar!$H$31:$H$51,D$33) -> 1243052.707 | E138: =INDEX(Prop2021DistTar!$H$31:$H$51,E$33) -> 1200457.61 | F138: =INDEX(Prop2021DistTar!$H$31:$H$51,F$33) -> 284506.2453 | G138: =INDEX(Prop2021DistTar!$H$31:$H$51,G$33) -> 542982.449 | H138: =INDEX(Prop2021DistTar!$H$31:$H$51,H$33) -> 235362.2247 | I138: =INDEX(Prop2021DistTar!$H$31:$H$51,I$33) -> 272494.3938 | J138: =INDEX(Prop2021DistTar!$H$31:$H$51,J$33) -> 244267.4951 | K138: =INDEX(Prop2021DistTar!$H$31:$H$51,K$33) -> 59683.67845 | L138: =INDEX(Prop2021DistTar!$H$31:$H$51,L$33) -> 111097.4038 | M138: =INDEX(Prop2021DistTar!$H$31:$H$51,M$33) -> 35171.97809 | N138: =INDEX(Prop2021DistTar!$H$31:$H$51,N$33) -> 265010.7989 | O138: =INDEX(Prop2021DistTar!$H$31:$H$51,O$33) -> 236126.8619 | P138: =INDEX(Prop2021DistTar!$H$31:$H$51,P$33) -> 59108.7001 | Q138: =INDEX(Prop2021DistTar!$H$31:$H$51,Q$33) -> 111507.6643 | R138: =INDEX(Prop2021DistTar!$H$31:$H$51,R$33) -> 37120.24303 | S138: =INDEX(Prop2021DistTar!$H$31:$H$51,S$33) -> 1180773.617 | T138: =INDEX(Prop2021DistTar!$H$31:$H$51,T$33) -> 1089295.046 | U138: =INDEX(Prop2021DistTar!$H$31:$H$51,U$33) -> 244777.7776 | V138: =INDEX(Prop2021DistTar!$H$31:$H$51,V$33) -> 437837.8433 | W138: =INDEX(Prop2021DistTar!$H$31:$H$51,W$33) -> 107574.6549
B140: =B134 -> Proposed (1 Jan-31 Dec): Tariff V - Multinet Non-Residential | C140: =INDEX(Prop2021DistTar!$G$31:$G$51,C$32) -> 1757444.778 | D140: =INDEX(Prop2021DistTar!$G$31:$G$51,D$32) -> 1261557.212 | E140: =INDEX(Prop2021DistTar!$G$31:$G$51,E$32) -> 1200457.61 | F140: =INDEX(Prop2021DistTar!$G$31:$G$51,F$32) -> 284506.2453 | G140: =INDEX(Prop2021DistTar!$G$31:$G$51,G$32) -> 542982.449 | H140: =INDEX(Prop2021DistTar!$G$31:$G$51,H$32) -> 235362.2247 | I140: =INDEX(Prop2021DistTar!$G$31:$G$51,I$32) -> 276554.4743 | J140: =INDEX(Prop2021DistTar!$G$31:$G$51,J$32) -> 244267.4951 | K140: =INDEX(Prop2021DistTar!$G$31:$G$51,K$32) -> 59683.67845 | L140: =INDEX(Prop2021DistTar!$G$31:$G$51,L$32) -> 111097.4038 | M140: =INDEX(Prop2021DistTar!$G$31:$G$51,M$32) -> 35171.97809 | N140: =INDEX(Prop2021DistTar!$G$31:$G$51,N$32) -> 268959.3762 | O140: =INDEX(Prop2021DistTar!$G$31:$G$51,O$32) -> 236126.8619 | P140: =INDEX(Prop2021DistTar!$G$31:$G$51,P$32) -> 59108.7001 | Q140: =INDEX(Prop2021DistTar!$G$31:$G$51,Q$32) -> 111507.6643 | R140: =INDEX(Prop2021DistTar!$G$31:$G$51,R$32) -> 37120.24303 | S140: =INDEX(Prop2021DistTar!$G$31:$G$51,S$32) -> 1198365.974 | T140: =INDEX(Prop2021DistTar!$G$31:$G$51,T$32) -> 1089295.046 | U140: =INDEX(Prop2021DistTar!$G$31:$G$51,U$32) -> 244777.7776 | V140: =INDEX(Prop2021DistTar!$G$31:$G$51,V$32) -> 437837.8433 | W140: =INDEX(Prop2021DistTar!$G$31:$G$51,W$32) -> 107574.6549
B142: Revenue | C142: Total
B143: =B138 -> Existing (1 Jan - 31 Dec): Tariff V - Multinet Non-Residential | C143: =SUM(C137:W138) -> 9755654.17
B144: =B140 -> Proposed (1 Jan-31 Dec): Tariff V - Multinet Non-Residential | C144: =SUM(C139:W140) -> 9799759.691
B146: Average price movement | C146: =IF(C144=0,"",C144/C143) -> 1.004521021
B148: =IF(C146="","",IF(C146<=$C$13,"REBALANCING CONTROL COMPLIANT","REBALANCING CONTROL BREACHED")) -> REBALANCING CONTROL COMPLIANT
B152: =Prop2021DistTar!B75 -> Tariff V - Yarra Valley Non-Residential | C152: 1 | D152: 2 | E152: 3 | F152: 4 | G152: 5 | S152: 6 | T152: 7 | U152: 8 | V152: 9
C153: 1 | D153: 2 | E153: 3 | F153: 4 | G153: 5 | H153: 6 | I153: 7 | J153: 8 | K153: 9 | L153: 10 | M153: 11 | S153: 12 | T153: 13 | U153: 14 | V153: 15 | W153: 16
B154: Distribution tariff | C154: Fixed | D154: PkBlk1 | E154: PkBlk2 | F154: PkBlk3 | G154: PkBlk4 | H154: PkBlk5 | I154: Shd1Blk1 | J154: Shd1Blk2 | K154: Shd1Blk3 | L154: Shd1Blk4 | M154: Shd1Blk5 | N154: Shd2Blk1 | O154: Shd2Blk2 | P154: Shd2Blk3 | Q154: Shd2Blk4 | R154: Shd2Blk5 | S154: OPkBlk1 | T154: OPkBlk2 | U154: OPkBlk3 | V154: OPkBlk4 | W154: OPkBlk5
B156: ="Existing (1 Jan - 31 Dec): "&Prop2021DistTar!C75 -> Existing (1 Jan - 31 Dec): Tariff V - Yarra Valley Non-Residential | C156: =INDEX(Prop2021DistTar!$E$77:$E$97,C$33) -> 0.3004 | D156: =INDEX(Prop2021DistTar!$E$77:$E$97,D$33) -> 6.707260344 | E156: =INDEX(Prop2021DistTar!$E$77:$E$97,E$33) -> 5.1199 | F156: =INDEX(Prop2021DistTar!$E$77:$E$97,F$33) -> 4.3555 | G156: =INDEX(Prop2021DistTar!$E$77:$E$97,G$33) -> 3.8468 | H156: =INDEX(Prop2021DistTar!$E$77:$E$97,H$33) -> 3.4214 | I156: =INDEX(Prop2021DistTar!$E$77:$E$97,I$33) -> 6.439542215 | J156: =INDEX(Prop2021DistTar!$E$77:$E$97,J$33) -> 4.9288 | K156: =INDEX(Prop2021DistTar!$E$77:$E$97,K$33) -> 4.298 | L156: =INDEX(Prop2021DistTar!$E$77:$E$97,L$33) -> 3.8304 | M156: =INDEX(Prop2021DistTar!$E$77:$E$97,M$33) -> 3.4001 | N156: =INDEX(Prop2021DistTar!$E$77:$E$97,N$33) -> 6.439542215 | O156: =INDEX(Prop2021DistTar!$E$77:$E$97,O$33) -> 4.9288 | P156: =INDEX(Prop2021DistTar!$E$77:$E$97,P$33) -> 4.298 | Q156: =INDEX(Prop2021DistTar!$E$77:$E$97,Q$33) -> 3.8304 | R156: =INDEX(Prop2021DistTar!$E$77:$E$97,R$33) -> 3.4001 | S156: =INDEX(Prop2021DistTar!$E$77:$E$97,S$33) -> 6.161531194 | T156: =INDEX(Prop2021DistTar!$E$77:$E$97,T$33) -> 4.8698 | U156: =INDEX(Prop2021DistTar!$E$77:$E$97,U$33) -> 4.2028 | V156: =INDEX(Prop2021DistTar!$E$77:$E$97,V$33) -> 3.8112 | W156: =INDEX(Prop2021DistTar!$E$77:$E$97,W$33) -> 3.3787
B158: ="Proposed (1 Jan-31 Dec): "&B152 -> Proposed (1 Jan-31 Dec): Tariff V - Yarra Valley Non-Residential | C158: =INDEX(Prop2021DistTar!$D$77:$D$97,C$32) -> 0.3004 | D158: =INDEX(Prop2021DistTar!$D$77:$D$97,D$32) -> 6.8072 | E158: =INDEX(Prop2021DistTar!$D$77:$D$97,E$32) -> 5.1199 | F158: =INDEX(Prop2021DistTar!$D$77:$D$97,F$32) -> 4.3555 | G158: =INDEX(Prop2021DistTar!$D$77:$D$97,G$32) -> 3.8468 | H158: =INDEX(Prop2021DistTar!$D$77:$D$97,H$32) -> 3.4214 | I158: =INDEX(Prop2021DistTar!$D$77:$D$97,I$32) -> 6.5355 | J158: =INDEX(Prop2021DistTar!$D$77:$D$97,J$32) -> 4.9288 | K158: =INDEX(Prop2021DistTar!$D$77:$D$97,K$32) -> 4.298 | L158: =INDEX(Prop2021DistTar!$D$77:$D$97,L$32) -> 3.8304 | M158: =INDEX(Prop2021DistTar!$D$77:$D$97,M$32) -> 3.4001 | N158: =INDEX(Prop2021DistTar!$D$77:$D$97,N$32) -> 6.5355 | O158: =INDEX(Prop2021DistTar!$D$77:$D$97,O$32) -> 4.9288 | P158: =INDEX(Prop2021DistTar!$D$77:$D$97,P$32) -> 4.298 | Q158: =INDEX(Prop2021DistTar!$D$77:$D$97,Q$32) -> 3.8304 | R158: =INDEX(Prop2021DistTar!$D$77:$D$97,R$32) -> 3.4001 | S158: =INDEX(Prop2021DistTar!$D$77:$D$97,S$32) -> 6.2533 | T158: =INDEX(Prop2021DistTar!$D$77:$D$97,T$32) -> 4.8698 | U158: =INDEX(Prop2021DistTar!$D$77:$D$97,U$32) -> 4.2028 | V158: =INDEX(Prop2021DistTar!$D$77:$D$97,V$32) -> 3.8112 | W158: =INDEX(Prop2021DistTar!$D$77:$D$97,W$32) -> 3.3787
B160: Distribution volumes (actual) | C160: Fixed | D160: PkBlk1 | E160: PkBlk2 | F160: PkBlk3 | G160: PkBlk4 | H160: PkBlk5 | I160: Shd1Blk1 | J160: Shd1Blk2 | K160: Shd1Blk3 | L160: Shd1Blk4 | M160: Shd1Blk5 | N160: Shd2Blk1 | O160: Shd2Blk2 | P160: Shd2Blk3 | Q160: Shd2Blk4 | R160: Shd2Blk5 | S160: OPkBlk1 | T160: OPkBlk2 | U160: OPkBlk3 | V160: OPkBlk4 | W160: OPkBlk5
B162: =B156 -> Existing (1 Jan - 31 Dec): Tariff V - Yarra Valley Non-Residential | C162: =INDEX(Prop2021DistTar!$F$77:$F$97,C$32) -> 70 | D162: =INDEX(Prop2021DistTar!$F$77:$F$97,D$32) -> 1606.584008 | E162: =INDEX(Prop2021DistTar!$F$77:$F$97,E$32) -> 2260.657985 | F162: =INDEX(Prop2021DistTar!$F$77:$F$97,F$32) -> 536.2200024 | G162: =INDEX(Prop2021DistTar!$F$77:$F$97,G$32) -> 1928.594993 | H162: =INDEX(Prop2021DistTar!$F$77:$F$97,H$32) -> 4249.308993 | I162: =INDEX(Prop2021DistTar!$F$77:$F$97,I$32) -> 386.7290015 | J162: =INDEX(Prop2021DistTar!$F$77:$F$97,J$32) -> 556.3390071 | K162: =INDEX(Prop2021DistTar!$F$77:$F$97,K$32) -> 116.0809995 | L162: =INDEX(Prop2021DistTar!$F$77:$F$97,L$32) -> 472.3869994 | M162: =INDEX(Prop2021DistTar!$F$77:$F$97,M$32) -> 810.0840022 | N162: =INDEX(Prop2021DistTar!$F$77:$F$97,N$32) -> 380.4410011 | O162: =INDEX(Prop2021DistTar!$F$77:$F$97,O$32) -> 477.6429978 | P162: =INDEX(Prop2021DistTar!$F$77:$F$97,P$32) -> 99.5630011 | Q162: =INDEX(Prop2021DistTar!$F$77:$F$97,Q$32) -> 342.2450016 | R162: =INDEX(Prop2021DistTar!$F$77:$F$97,R$32) -> 645.5499985 | S162: =INDEX(Prop2021DistTar!$F$77:$F$97,S$32) -> 1859.108018 | T162: =INDEX(Prop2021DistTar!$F$77:$F$97,T$32) -> 2180.437976 | U162: =INDEX(Prop2021DistTar!$F$77:$F$97,U$32) -> 399.1900013 | V162: =INDEX(Prop2021DistTar!$F$77:$F$97,V$32) -> 1794.727003 | W162: =INDEX(Prop2021DistTar!$F$77:$F$97,W$32) -> 2615.044994
B164: =B158 -> Proposed (1 Jan-31 Dec): Tariff V - Yarra Valley Non-Residential | C164: =INDEX(Prop2021DistTar!$F$77:$F$97,C$32) -> 70 | D164: =INDEX(Prop2021DistTar!$F$77:$F$97,D$32) -> 1606.584008 | E164: =INDEX(Prop2021DistTar!$F$77:$F$97,E$32) -> 2260.657985 | F164: =INDEX(Prop2021DistTar!$F$77:$F$97,F$32) -> 536.2200024 | G164: =INDEX(Prop2021DistTar!$F$77:$F$97,G$32) -> 1928.594993 | H164: =INDEX(Prop2021DistTar!$F$77:$F$97,H$32) -> 4249.308993 | I164: =INDEX(Prop2021DistTar!$F$77:$F$97,I$32) -> 386.7290015 | J164: =INDEX(Prop2021DistTar!$F$77:$F$97,J$32) -> 556.3390071 | K164: =INDEX(Prop2021DistTar!$F$77:$F$97,K$32) -> 116.0809995 | L164: =INDEX(Prop2021DistTar!$F$77:$F$97,L$32) -> 472.3869994 | M164: =INDEX(Prop2021DistTar!$F$77:$F$97,M$32) -> 810.0840022 | N164: =INDEX(Prop2021DistTar!$F$77:$F$97,N$32) -> 380.4410011 | O164: =INDEX(Prop2021DistTar!$F$77:$F$97,O$32) -> 477.6429978 | P164: =INDEX(Prop2021DistTar!$F$77:$F$97,P$32) -> 99.5630011 | Q164: =INDEX(Prop2021DistTar!$F$77:$F$97,Q$32) -> 342.2450016 | R164: =INDEX(Prop2021DistTar!$F$77:$F$97,R$32) -> 645.5499985 | S164: =INDEX(Prop2021DistTar!$F$77:$F$97,S$32) -> 1859.108018 | T164: =INDEX(Prop2021DistTar!$F$77:$F$97,T$32) -> 2180.437976 | U164: =INDEX(Prop2021DistTar!$F$77:$F$97,U$32) -> 399.1900013 | V164: =INDEX(Prop2021DistTar!$F$77:$F$97,V$32) -> 1794.727003 | W164: =INDEX(Prop2021DistTar!$F$77:$F$97,W$32) -> 2615.044994
B166: Distribution revenue | C166: Fixed | D166: PkBlk1 | E166: PkBlk2 | F166: PkBlk3 | G166: PkBlk4 | H166: PkBlk5 | I166: Shd1Blk1 | J166: Shd1Blk2 | K166: Shd1Blk3 | L166: Shd1Blk4 | M166: Shd1Blk5 | N166: Shd2Blk1 | O166: Shd2Blk2 | P166: Shd2Blk3 | Q166: Shd2Blk4 | R166: Shd2Blk5 | S166: OPkBlk1 | T166: OPkBlk2 | U166: OPkBlk3 | V166: OPkBlk4 | W166: OPkBlk5
B168: =B162 -> Existing (1 Jan - 31 Dec): Tariff V - Yarra Valley Non-Residential | C168: =INDEX(Prop2021DistTar!$H$77:$H$97,C$33) -> 7675.22 | D168: =INDEX(Prop2021DistTar!$H$77:$H$97,D$33) -> 10775.77721 | E168: =INDEX(Prop2021DistTar!$H$77:$H$97,E$33) -> 11574.34282 | F168: =INDEX(Prop2021DistTar!$H$77:$H$97,F$33) -> 2335.50622 | G168: =INDEX(Prop2021DistTar!$H$77:$H$97,G$33) -> 7418.91922 | H168: =INDEX(Prop2021DistTar!$H$77:$H$97,H$33) -> 14538.58579 | I168: =INDEX(Prop2021DistTar!$H$77:$H$97,I$33) -> 2490.357731 | J168: =INDEX(Prop2021DistTar!$H$77:$H$97,J$33) -> 2742.083698 | K168: =INDEX(Prop2021DistTar!$H$77:$H$97,K$33) -> 498.9161359 | L168: =INDEX(Prop2021DistTar!$H$77:$H$97,L$33) -> 1809.431163 | M168: =INDEX(Prop2021DistTar!$H$77:$H$97,M$33) -> 2754.366616 | N168: =INDEX(Prop2021DistTar!$H$77:$H$97,N$33) -> 2449.865887 | O168: =INDEX(Prop2021DistTar!$H$77:$H$97,O$33) -> 2354.206808 | P168: =INDEX(Prop2021DistTar!$H$77:$H$97,P$33) -> 427.9217787 | Q168: =INDEX(Prop2021DistTar!$H$77:$H$97,Q$33) -> 1310.935254 | R168: =INDEX(Prop2021DistTar!$H$77:$H$97,R$33) -> 2194.93455 | S168: =INDEX(Prop2021DistTar!$H$77:$H$97,S$33) -> 11454.95205 | T168: =INDEX(Prop2021DistTar!$H$77:$H$97,T$33) -> 10618.29686 | U168: =INDEX(Prop2021DistTar!$H$77:$H$97,U$33) -> 1677.715737 | V168: =INDEX(Prop2021DistTar!$H$77:$H$97,V$33) -> 6840.063554 | W168: =INDEX(Prop2021DistTar!$H$77:$H$97,W$33) -> 8835.452522
B170: =B164 -> Proposed (1 Jan-31 Dec): Tariff V - Yarra Valley Non-Residential | C170: =INDEX(Prop2021DistTar!$G$77:$G$97,C$32) -> 7675.22 | D170: =INDEX(Prop2021DistTar!$G$77:$G$97,D$32) -> 10936.33866 | E170: =INDEX(Prop2021DistTar!$G$77:$G$97,E$32) -> 11574.34282 | F170: =INDEX(Prop2021DistTar!$G$77:$G$97,F$32) -> 2335.50622 | G170: =INDEX(Prop2021DistTar!$G$77:$G$97,G$32) -> 7418.91922 | H170: =INDEX(Prop2021DistTar!$G$77:$G$97,H$32) -> 14538.58579 | I170: =INDEX(Prop2021DistTar!$G$77:$G$97,I$32) -> 2527.467389 | J170: =INDEX(Prop2021DistTar!$G$77:$G$97,J$32) -> 2742.083698 | K170: =INDEX(Prop2021DistTar!$G$77:$G$97,K$32) -> 498.9161359 | L170: =INDEX(Prop2021DistTar!$G$77:$G$97,L$32) -> 1809.431163 | M170: =INDEX(Prop2021DistTar!$G$77:$G$97,M$32) -> 2754.366616 | N170: =INDEX(Prop2021DistTar!$G$77:$G$97,N$32) -> 2486.372163 | O170: =INDEX(Prop2021DistTar!$G$77:$G$97,O$32) -> 2354.206808 | P170: =INDEX(Prop2021DistTar!$G$77:$G$97,P$32) -> 427.9217787 | Q170: =INDEX(Prop2021DistTar!$G$77:$G$97,Q$32) -> 1310.935254 | R170: =INDEX(Prop2021DistTar!$G$77:$G$97,R$32) -> 2194.93455 | S170: =INDEX(Prop2021DistTar!$G$77:$G$97,S$32) -> 11625.56017 | T170: =INDEX(Prop2021DistTar!$G$77:$G$97,T$32) -> 10618.29686 | U170: =INDEX(Prop2021DistTar!$G$77:$G$97,U$32) -> 1677.715737 | V170: =INDEX(Prop2021DistTar!$G$77:$G$97,V$32) -> 6840.063554 | W170: =INDEX(Prop2021DistTar!$G$77:$G$97,W$32) -> 8835.452522
B172: Revenue | C172: Total
B173: =B168 -> Existing (1 Jan - 31 Dec): Tariff V - Yarra Valley Non-Residential | C173: =SUM(C167:W168) -> 112777.8516
B174: =B170 -> Proposed (1 Jan-31 Dec): Tariff V - Yarra Valley Non-Residential | C174: =SUM(C169:W170) -> 113182.6371
B176: Average price movement | C176: =IF(C174=0,"",C174/C173) -> 1.003589229
B178: =IF(C176="","",IF(C176<=$C$13,"REBALANCING CONTROL COMPLIANT","REBALANCING CONTROL BREACHED")) -> REBALANCING CONTROL COMPLIANT
B182: =Prop2021DistTar!B121 -> Tariff V - South Gippsland Non-Residential | C182: 1 | D182: 2 | E182: 3 | F182: 4 | G182: 5 | S182: 6 | T182: 7 | U182: 8 | V182: 9
C183: 1 | D183: 2 | E183: 3 | F183: 4 | G183: 5 | H183: 6 | I183: 7 | J183: 8 | K183: 9 | L183: 10 | M183: 11 | S183: 12 | T183: 13 | U183: 14 | V183: 15 | W183: 16
B184: Distribution tariff | C184: Fixed | D184: PkBlk1 | E184: PkBlk2 | F184: PkBlk3 | G184: PkBlk4 | H184: PkBlk5 | I184: Shd1Blk1 | J184: Shd1Blk2 | K184: Shd1Blk3 | L184: Shd1Blk4 | M184: Shd1Blk5 | N184: Shd2Blk1 | O184: Shd2Blk2 | P184: Shd2Blk3 | Q184: Shd2Blk4 | R184: Shd2Blk5 | S184: OPkBlk1 | T184: OPkBlk2 | U184: OPkBlk3 | V184: OPkBlk4 | W184: OPkBlk5
B186: ="Existing (1 Jan - 31 Dec): "&Prop2021DistTar!C121 -> Existing (1 Jan - 31 Dec): Tariff V - South Gippsland Non-Residential | C186: =INDEX(Prop2021DistTar!$E$123:$E$143,C$33) -> 0.3018 | D186: =INDEX(Prop2021DistTar!$E$123:$E$143,D$33) -> 7.397810489 | E186: =INDEX(Prop2021DistTar!$E$123:$E$143,E$33) -> 5.6927 | F186: =INDEX(Prop2021DistTar!$E$123:$E$143,F$33) -> 4.8807 | G186: =INDEX(Prop2021DistTar!$E$123:$E$143,G$33) -> 4.3408 | H186: =INDEX(Prop2021DistTar!$E$123:$E$143,H$33) -> 3.889 | I186: =INDEX(Prop2021DistTar!$E$123:$E$143,I$33) -> 7.113623733 | J186: =INDEX(Prop2021DistTar!$E$123:$E$143,J$33) -> 5.4896 | K186: =INDEX(Prop2021DistTar!$E$123:$E$143,K$33) -> 4.8199 | L186: =INDEX(Prop2021DistTar!$E$123:$E$143,L$33) -> 4.3232 | M186: =INDEX(Prop2021DistTar!$E$123:$E$143,M$33) -> 3.8662 | N186: =INDEX(Prop2021DistTar!$E$123:$E$143,N$33) -> 7.113623733 | O186: =INDEX(Prop2021DistTar!$E$123:$E$143,O$33) -> 5.4896 | P186: =INDEX(Prop2021DistTar!$E$123:$E$143,P$33) -> 4.8199 | Q186: =INDEX(Prop2021DistTar!$E$123:$E$143,Q$33) -> 4.3232 | R186: =INDEX(Prop2021DistTar!$E$123:$E$143,R$33) -> 3.8662 | S186: =INDEX(Prop2021DistTar!$E$123:$E$143,S$33) -> 6.81852651 | T186: =INDEX(Prop2021DistTar!$E$123:$E$143,T$33) -> 5.4269 | U186: =INDEX(Prop2021DistTar!$E$123:$E$143,U$33) -> 4.7186 | V186: =INDEX(Prop2021DistTar!$E$123:$E$143,V$33) -> 4.3028 | W186: =INDEX(Prop2021DistTar!$E$123:$E$143,W$33) -> 3.8436
B188: ="Proposed (1 Jan-31 Dec): "&B182 -> Proposed (1 Jan-31 Dec): Tariff V - South Gippsland Non-Residential | C188: =INDEX(Prop2021DistTar!$D$123:$D$143,C$32) -> 0.3018 | D188: =INDEX(Prop2021DistTar!$D$123:$D$143,D$32) -> 7.508 | E188: =INDEX(Prop2021DistTar!$D$123:$D$143,E$32) -> 5.6927 | F188: =INDEX(Prop2021DistTar!$D$123:$D$143,F$32) -> 4.8807 | G188: =INDEX(Prop2021DistTar!$D$123:$D$143,G$32) -> 4.3408 | H188: =INDEX(Prop2021DistTar!$D$123:$D$143,H$32) -> 3.889 | I188: =INDEX(Prop2021DistTar!$D$123:$D$143,I$32) -> 7.2196 | J188: =INDEX(Prop2021DistTar!$D$123:$D$143,J$32) -> 5.4896 | K188: =INDEX(Prop2021DistTar!$D$123:$D$143,K$32) -> 4.8199 | L188: =INDEX(Prop2021DistTar!$D$123:$D$143,L$32) -> 4.3232 | M188: =INDEX(Prop2021DistTar!$D$123:$D$143,M$32) -> 3.8662 | N188: =INDEX(Prop2021DistTar!$D$123:$D$143,N$32) -> 7.2196 | O188: =INDEX(Prop2021DistTar!$D$123:$D$143,O$32) -> 5.4896 | P188: =INDEX(Prop2021DistTar!$D$123:$D$143,P$32) -> 4.8199 | Q188: =INDEX(Prop2021DistTar!$D$123:$D$143,Q$32) -> 4.3232 | R188: =INDEX(Prop2021DistTar!$D$123:$D$143,R$32) -> 3.8662 | S188: =INDEX(Prop2021DistTar!$D$123:$D$143,S$32) -> 6.9201 | T188: =INDEX(Prop2021DistTar!$D$123:$D$143,T$32) -> 5.4269 | U188: =INDEX(Prop2021DistTar!$D$123:$D$143,U$32) -> 4.7186 | V188: =INDEX(Prop2021DistTar!$D$123:$D$143,V$32) -> 4.3028 | W188: =INDEX(Prop2021DistTar!$D$123:$D$143,W$32) -> 3.8436
B190: Distribution volumes (actual) | C190: Fixed | D190: PkBlk1 | E190: PkBlk2 | F190: PkBlk3 | G190: PkBlk4 | H190: PkBlk5 | I190: Shd1Blk1 | J190: Shd1Blk2 | K190: Shd1Blk3 | L190: Shd1Blk4 | M190: Shd1Blk5 | N190: Shd2Blk1 | O190: Shd2Blk2 | P190: Shd2Blk3 | Q190: Shd2Blk4 | R190: Shd2Blk5 | S190: OPkBlk1 | T190: OPkBlk2 | U190: OPkBlk3 | V190: OPkBlk4 | W190: OPkBlk5
B192: =B186 -> Existing (1 Jan - 31 Dec): Tariff V - South Gippsland Non-Residential | C192: =INDEX(Prop2021DistTar!$F$123:$F$143,C$32) -> 115 | D192: =INDEX(Prop2021DistTar!$F$123:$F$143,D$32) -> 2540.73801 | E192: =INDEX(Prop2021DistTar!$F$123:$F$143,E$32) -> 4864.649002 | F192: =INDEX(Prop2021DistTar!$F$123:$F$143,F$32) -> 2304.204003 | G192: =INDEX(Prop2021DistTar!$F$123:$F$143,G$32) -> 9135.884996 | H192: =INDEX(Prop2021DistTar!$F$123:$F$143,H$32) -> 15699.512 | I192: =INDEX(Prop2021DistTar!$F$123:$F$143,I$32) -> 596.3540066 | J192: =INDEX(Prop2021DistTar!$F$123:$F$143,J$32) -> 1094.788998 | K192: =INDEX(Prop2021DistTar!$F$123:$F$143,K$32) -> 499.5359984 | L192: =INDEX(Prop2021DistTar!$F$123:$F$143,L$32) -> 2061.356999 | M192: =INDEX(Prop2021DistTar!$F$123:$F$143,M$32) -> 2693.682003 | N192: =INDEX(Prop2021DistTar!$F$123:$F$143,N$32) -> 603.7720055 | O192: =INDEX(Prop2021DistTar!$F$123:$F$143,O$32) -> 1135.746005 | P192: =INDEX(Prop2021DistTar!$F$123:$F$143,P$32) -> 503.5190003 | Q192: =INDEX(Prop2021DistTar!$F$123:$F$143,Q$32) -> 2113.721003 | R192: =INDEX(Prop2021DistTar!$F$123:$F$143,R$32) -> 2943.517002 | S192: =INDEX(Prop2021DistTar!$F$123:$F$143,S$32) -> 3117.052988 | T192: =INDEX(Prop2021DistTar!$F$123:$F$143,T$32) -> 5918.371006 | U192: =INDEX(Prop2021DistTar!$F$123:$F$143,U$32) -> 2656.559995 | V192: =INDEX(Prop2021DistTar!$F$123:$F$143,V$32) -> 9239.258019 | W192: =INDEX(Prop2021DistTar!$F$123:$F$143,W$32) -> 9447.508994
B194: =B188 -> Proposed (1 Jan-31 Dec): Tariff V - South Gippsland Non-Residential | C194: =INDEX(Prop2021DistTar!$F$123:$F$143,C$32) -> 115 | D194: =INDEX(Prop2021DistTar!$F$123:$F$143,D$32) -> 2540.73801 | E194: =INDEX(Prop2021DistTar!$F$123:$F$143,E$32) -> 4864.649002 | F194: =INDEX(Prop2021DistTar!$F$123:$F$143,F$32) -> 2304.204003 | G194: =INDEX(Prop2021DistTar!$F$123:$F$143,G$32) -> 9135.884996 | H194: =INDEX(Prop2021DistTar!$F$123:$F$143,H$32) -> 15699.512 | I194: =INDEX(Prop2021DistTar!$F$123:$F$143,I$32) -> 596.3540066 | J194: =INDEX(Prop2021DistTar!$F$123:$F$143,J$32) -> 1094.788998 | K194: =INDEX(Prop2021DistTar!$F$123:$F$143,K$32) -> 499.5359984 | L194: =INDEX(Prop2021DistTar!$F$123:$F$143,L$32) -> 2061.356999 | M194: =INDEX(Prop2021DistTar!$F$123:$F$143,M$32) -> 2693.682003 | N194: =INDEX(Prop2021DistTar!$F$123:$F$143,N$32) -> 603.7720055 | O194: =INDEX(Prop2021DistTar!$F$123:$F$143,O$32) -> 1135.746005 | P194: =INDEX(Prop2021DistTar!$F$123:$F$143,P$32) -> 503.5190003 | Q194: =INDEX(Prop2021DistTar!$F$123:$F$143,Q$32) -> 2113.721003 | R194: =INDEX(Prop2021DistTar!$F$123:$F$143,R$32) -> 2943.517002 | S194: =INDEX(Prop2021DistTar!$F$123:$F$143,S$32) -> 3117.052988 | T194: =INDEX(Prop2021DistTar!$F$123:$F$143,T$32) -> 5918.371006 | U194: =INDEX(Prop2021DistTar!$F$123:$F$143,U$32) -> 2656.559995 | V194: =INDEX(Prop2021DistTar!$F$123:$F$143,V$32) -> 9239.258019 | W194: =INDEX(Prop2021DistTar!$F$123:$F$143,W$32) -> 9447.508994
B196: Distribution revenue | C196: Fixed | D196: PkBlk1 | E196: PkBlk2 | F196: PkBlk3 | G196: PkBlk4 | H196: PkBlk5 | I196: Shd1Blk1 | J196: Shd1Blk2 | K196: Shd1Blk3 | L196: Shd1Blk4 | M196: Shd1Blk5 | N196: Shd2Blk1 | O196: Shd2Blk2 | P196: Shd2Blk3 | Q196: Shd2Blk4 | R196: Shd2Blk5 | S196: OPkBlk1 | T196: OPkBlk2 | U196: OPkBlk3 | V196: OPkBlk4 | W196: OPkBlk5
B198: =B192 -> Existing (1 Jan - 31 Dec): Tariff V - South Gippsland Non-Residential | C198: =INDEX(Prop2021DistTar!$H$123:$H$143,C$33) -> 12668.055 | D198: =INDEX(Prop2021DistTar!$H$123:$H$143,D$33) -> 18795.8983 | E198: =INDEX(Prop2021DistTar!$H$123:$H$143,E$33) -> 27692.98738 | F198: =INDEX(Prop2021DistTar!$H$123:$H$143,F$33) -> 11246.12848 | G198: =INDEX(Prop2021DistTar!$H$123:$H$143,G$33) -> 39657.04959 | H198: =INDEX(Prop2021DistTar!$H$123:$H$143,H$33) -> 61055.40216 | I198: =INDEX(Prop2021DistTar!$H$123:$H$143,I$33) -> 4242.238014 | J198: =INDEX(Prop2021DistTar!$H$123:$H$143,J$33) -> 6009.953683 | K198: =INDEX(Prop2021DistTar!$H$123:$H$143,K$33) -> 2407.713559 | L198: =INDEX(Prop2021DistTar!$H$123:$H$143,L$33) -> 8911.658578 | M198: =INDEX(Prop2021DistTar!$H$123:$H$143,M$33) -> 10414.31336 | N198: =INDEX(Prop2021DistTar!$H$123:$H$143,N$33) -> 4295.006867 | O198: =INDEX(Prop2021DistTar!$H$123:$H$143,O$33) -> 6234.791272 | P198: =INDEX(Prop2021DistTar!$H$123:$H$143,P$33) -> 2426.91123 | Q198: =INDEX(Prop2021DistTar!$H$123:$H$143,Q$33) -> 9138.038641 | R198: =INDEX(Prop2021DistTar!$H$123:$H$143,R$33) -> 11380.22543 | S198: =INDEX(Prop2021DistTar!$H$123:$H$143,S$33) -> 21253.70843 | T198: =INDEX(Prop2021DistTar!$H$123:$H$143,T$33) -> 32118.40761 | U198: =INDEX(Prop2021DistTar!$H$123:$H$143,U$33) -> 12535.24399 | V198: =INDEX(Prop2021DistTar!$H$123:$H$143,V$33) -> 39754.6794 | W198: =INDEX(Prop2021DistTar!$H$123:$H$143,W$33) -> 36312.44557
B200: =B194 -> Proposed (1 Jan-31 Dec): Tariff V - South Gippsland Non-Residential | C200: =INDEX(Prop2021DistTar!$G$123:$G$143,C$32) -> 12668.055 | D200: =INDEX(Prop2021DistTar!$G$123:$G$143,D$32) -> 19075.86098 | E200: =INDEX(Prop2021DistTar!$G$123:$G$143,E$32) -> 27692.98738 | F200: =INDEX(Prop2021DistTar!$G$123:$G$143,F$32) -> 11246.12848 | G200: =INDEX(Prop2021DistTar!$G$123:$G$143,G$32) -> 39657.04959 | H200: =INDEX(Prop2021DistTar!$G$123:$G$143,H$32) -> 61055.40216 | I200: =INDEX(Prop2021DistTar!$G$123:$G$143,I$32) -> 4305.437386 | J200: =INDEX(Prop2021DistTar!$G$123:$G$143,J$32) -> 6009.953683 | K200: =INDEX(Prop2021DistTar!$G$123:$G$143,K$32) -> 2407.713559 | L200: =INDEX(Prop2021DistTar!$G$123:$G$143,L$32) -> 8911.658578 | M200: =INDEX(Prop2021DistTar!$G$123:$G$143,M$32) -> 10414.31336 | N200: =INDEX(Prop2021DistTar!$G$123:$G$143,N$32) -> 4358.992371 | O200: =INDEX(Prop2021DistTar!$G$123:$G$143,O$32) -> 6234.791272 | P200: =INDEX(Prop2021DistTar!$G$123:$G$143,P$32) -> 2426.91123 | Q200: =INDEX(Prop2021DistTar!$G$123:$G$143,Q$32) -> 9138.038641 | R200: =INDEX(Prop2021DistTar!$G$123:$G$143,R$32) -> 11380.22543 | S200: =INDEX(Prop2021DistTar!$G$123:$G$143,S$32) -> 21570.31838 | T200: =INDEX(Prop2021DistTar!$G$123:$G$143,T$32) -> 32118.40761 | U200: =INDEX(Prop2021DistTar!$G$123:$G$143,U$32) -> 12535.24399 | V200: =INDEX(Prop2021DistTar!$G$123:$G$143,V$32) -> 39754.6794 | W200: =INDEX(Prop2021DistTar!$G$123:$G$143,W$32) -> 36312.44557
B202: Revenue | C202: Total
B203: =B198 -> Existing (1 Jan - 31 Dec): Tariff V - South Gippsland Non-Residential | C203: =SUM(C197:W198) -> 378550.8565
B204: =B200 -> Proposed (1 Jan-31 Dec): Tariff V - South Gippsland Non-Residential | C204: =SUM(C199:W200) -> 379274.614
B206: Average price movement | C206: =IF(C204=0,"",C204/C203) -> 1.001911916
B208: =IF(C206="","",IF(C206<=$C$13,"REBALANCING CONTROL COMPLIANT","REBALANCING CONTROL BREACHED")) -> REBALANCING CONTROL COMPLIANT
B212: =Prop2021DistTar!B145 -> Tariff D - Multinet
C213: 1 | D213: 2
B214: Distribution tariff | C214: DemBlk1 | D214: DemBlk2
B215: ="Existing: "&Prop2021DistTar!C145 -> Existing: Tariff D - Multinet | C215: =INDEX(Prop2021DistTar!$E$146:$E$147,C213) -> 595.3247 | D215: =INDEX(Prop2021DistTar!$E$146:$E$147,D213) -> 101.2894
B216: ="Proposed: "&B212 -> Proposed: Tariff D - Multinet | C216: =INDEX(Prop2021DistTar!$D$146:$D$147,C213) -> 598.9217 | D216: =INDEX(Prop2021DistTar!$D$146:$D$147,D213) -> 101.9014
B218: Distribution volumes (actual) | C218: DemBlk1 | D218: DemBlk2
B219: =B215 -> Existing: Tariff D - Multinet | C219: =INDEX(Prop2021DistTar!$F$146:$F$147,C$213) -> 3044.79 | D219: =INDEX(Prop2021DistTar!$F$146:$F$147,D$213) -> 534.32
B220: =B216 -> Proposed: Tariff D - Multinet | C220: =INDEX(Prop2021DistTar!$F$146:$F$147,C$213) -> 3044.79 | D220: =INDEX(Prop2021DistTar!$F$146:$F$147,D$213) -> 534.32
B222: Distribution revenue | C222: DemBlk1 | D222: DemBlk2
B223: =B219 -> Existing: Tariff D - Multinet | C223: =INDEX(Prop2021DistTar!$H$146:$H$147,C213) -> 1812638.693 | D223: =INDEX(Prop2021DistTar!$H$146:$H$147,D213) -> 54120.95221
B224: =B220 -> Proposed: Tariff D - Multinet | C224: =INDEX(Prop2021DistTar!$G$146:$G$147,C213) -> 1823590.803 | D224: =INDEX(Prop2021DistTar!$G$146:$G$147,D213) -> 54447.95605
B226: Revenue | C226: Total
B227: =B223 -> Existing: Tariff D - Multinet | C227: =SUM(C223:D223) -> 1866759.646
B228: =B224 -> Proposed: Tariff D - Multinet | C228: =SUM(C224:D224) -> 1878038.759
B230: Average price movement | C230: =IF(C228=0,"",C228/C227) -> 1.006042081
B232: =IF(C230="","",IF(C230<=$C$13,"REBALANCING CONTROL COMPLIANT","REBALANCING CONTROL BREACHED")) -> REBALANCING CONTROL COMPLIANT
B235: =Prop2021DistTar!B149 -> Tariff L- Multinet Non-Residential | C235: 1 | D235: 2 | E235: 3 | F235: 4 | G235: 5
C236: 1 | D236: 2 | E236: 3 | I236: 4 | J236: 5 | N236: 6
B237: Distribution tariff | C237: Fixed | D237: PkBlk1 | E237: PkBlk2 | F237: Shd1Blk1 | G237: Shd1Blk2 | H237: Shd2Blk1 | I237: Shd2Blk2 | J237: OffPkBlk1 | K237: OffPkBlk2 | M237: Rolling12 | N237: PD
B239: ="Existing (1 Jan - 31 Dec): "&Prop2021DistTar!C149 -> Existing (1 Jan - 31 Dec): Tariff L- Multinet Non-Residential | C239: =INDEX(Prop2021DistTar!$E$151:$E$162,C$33) -> 0 | D239: =INDEX(Prop2021DistTar!$E$151:$E$162,D$33) -> 0.6377 | E239: =INDEX(Prop2021DistTar!$E$151:$E$162,E$33) -> 0.1368 | F239: =INDEX(Prop2021DistTar!$E$151:$E$162,F$33) -> 0.5654 | G239: =INDEX(Prop2021DistTar!$E$151:$E$162,G$33) -> 0.1284 | H239: =INDEX(Prop2021DistTar!$E$151:$E$162,H$33) -> 0.5654 | I239: =INDEX(Prop2021DistTar!$E$151:$E$162,I$33) -> 0.1284 | J239: =INDEX(Prop2021DistTar!$E$151:$E$162,J$33) -> 0.4483 | K239: =INDEX(Prop2021DistTar!$E$151:$E$162,K$33) -> 0.102 | L239: =INDEX(Prop2021DistTar!$E$151:$E$162,L$33) -> 0 | M239: =INDEX(Prop2021DistTar!$E$151:$E$162,M$33) -> 0.5929 | N239: =INDEX(Prop2021DistTar!$E$151:$E$162,N$33) -> 1.7739
B241: ="Proposed (1 Jan-31 Dec): "&B235 -> Proposed (1 Jan-31 Dec): Tariff L- Multinet Non-Residential | C241: =INDEX(Prop2021DistTar!$D$151:$D$162,C$33) -> 0 | D241: =INDEX(Prop2021DistTar!$D$151:$D$162,D$33) -> 0.6416 | E241: =INDEX(Prop2021DistTar!$D$151:$D$162,E$33) -> 0.1376 | F241: =INDEX(Prop2021DistTar!$D$151:$D$162,F$33) -> 0.5688 | G241: =INDEX(Prop2021DistTar!$D$151:$D$162,G$33) -> 0.1292 | H241: =INDEX(Prop2021DistTar!$D$151:$D$162,H$33) -> 0.5688 | I241: =INDEX(Prop2021DistTar!$D$151:$D$162,I$33) -> 0.1292 | J241: =INDEX(Prop2021DistTar!$D$151:$D$162,J$33) -> 0.451 | K241: =INDEX(Prop2021DistTar!$D$151:$D$162,K$33) -> 0.1026 | L241: =INDEX(Prop2021DistTar!$D$151:$D$162,L$33) -> 0 | M241: =INDEX(Prop2021DistTar!$D$151:$D$162,M$33) -> 0.5965 | N241: =INDEX(Prop2021DistTar!$D$151:$D$162,N$33) -> 1.7846
B243: Distribution volumes (actual) | C243: Fixed | D243: PkBlk1 | E243: PkBlk2 | F243: Shd1Blk1 | G243: Shd1Blk2 | H243: Shd2Blk1 | I243: Shd2Blk2 | J243: OffPkBlk1 | K243: OffPkBlk2 | M243: Rolling12 | N243: PD
B245: =B239 -> Existing (1 Jan - 31 Dec): Tariff L- Multinet Non-Residential | C245: =INDEX(Prop2021DistTar!$F$151:$F$162,C$33) -> 12 | D245: =INDEX(Prop2021DistTar!$F$151:$F$162,D$33) -> 6200.74 | E245: =INDEX(Prop2021DistTar!$F$151:$F$162,E$33) -> 26827.48 | F245: =INDEX(Prop2021DistTar!$F$151:$F$162,F$33) -> 1550.22 | G245: =INDEX(Prop2021DistTar!$F$151:$F$162,G$33) -> 5594.43 | H245: =INDEX(Prop2021DistTar!$F$151:$F$162,H$33) -> 1551.27 | I245: =INDEX(Prop2021DistTar!$F$151:$F$162,I$33) -> 4598.68 | J245: =INDEX(Prop2021DistTar!$F$151:$F$162,J$33) -> 8819.96 | K245: =INDEX(Prop2021DistTar!$F$151:$F$162,K$33) -> 18454.08 | L245: =INDEX(Prop2021DistTar!$F$151:$F$162,L$33) -> 0 | M245: =INDEX(Prop2021DistTar!$F$151:$F$162,M$33) -> 38.18 | N245: =INDEX(Prop2021DistTar!$F$151:$F$162,N$33) -> 35.22
B247: =B241 -> Proposed (1 Jan-31 Dec): Tariff L- Multinet Non-Residential | C247: =INDEX(Prop2021DistTar!$F$151:$F$162,C$33) -> 12 | D247: =INDEX(Prop2021DistTar!$F$151:$F$162,D$33) -> 6200.74 | E247: =INDEX(Prop2021DistTar!$F$151:$F$162,E$33) -> 26827.48 | F247: =INDEX(Prop2021DistTar!$F$151:$F$162,F$33) -> 1550.22 | G247: =INDEX(Prop2021DistTar!$F$151:$F$162,G$33) -> 5594.43 | H247: =INDEX(Prop2021DistTar!$F$151:$F$162,H$33) -> 1551.27 | I247: =INDEX(Prop2021DistTar!$F$151:$F$162,I$33) -> 4598.68 | J247: =INDEX(Prop2021DistTar!$F$151:$F$162,J$33) -> 8819.96 | K247: =INDEX(Prop2021DistTar!$F$151:$F$162,K$33) -> 18454.08 | L247: =INDEX(Prop2021DistTar!$F$151:$F$162,L$33) -> 0 | M247: =INDEX(Prop2021DistTar!$F$151:$F$162,M$33) -> 38.18 | N247: =INDEX(Prop2021DistTar!$F$151:$F$162,N$33) -> 35.22
B249: Distribution revenue | C249: Fixed | D249: PkBlk1 | E249: PkBlk2 | F249: Shd1Blk1 | G249: Shd1Blk2 | H249: Shd2Blk1 | I249: Shd2Blk2 | J249: OffPkBlk1 | K249: OffPkBlk2 | M249: Rolling12 | N249: PD
B251: =B245 -> Existing (1 Jan - 31 Dec): Tariff L- Multinet Non-Residential | C251: =INDEX(Prop2021DistTar!$H$151:$H$162,C$33) -> 0 | D251: =INDEX(Prop2021DistTar!$H$151:$H$162,D$33) -> 3954.211898 | E251: =INDEX(Prop2021DistTar!$H$151:$H$162,E$33) -> 3669.999264 | F251: =INDEX(Prop2021DistTar!$H$151:$H$162,F$33) -> 876.494388 | G251: =INDEX(Prop2021DistTar!$H$151:$H$162,G$33) -> 718.324812 | H251: =INDEX(Prop2021DistTar!$H$151:$H$162,H$33) -> 877.088058 | I251: =INDEX(Prop2021DistTar!$H$151:$H$162,I$33) -> 590.470512 | J251: =INDEX(Prop2021DistTar!$H$151:$H$162,J$33) -> 3953.988068 | K251: =INDEX(Prop2021DistTar!$H$151:$H$162,K$33) -> 1882.31616 | L251: =INDEX(Prop2021DistTar!$H$151:$H$162,L$33) -> 0 | M251: =INDEX(Prop2021DistTar!$H$151:$H$162,M$33) -> 8262.47653 | N251: =INDEX(Prop2021DistTar!$H$151:$H$162,N$33) -> 7622.164476
B253: =B247 -> Proposed (1 Jan-31 Dec): Tariff L- Multinet Non-Residential | C253: =INDEX(Prop2021DistTar!$G$151:$G$162,C$33) -> 0 | D253: =INDEX(Prop2021DistTar!$G$151:$G$162,D$33) -> 3978.394784 | E253: =INDEX(Prop2021DistTar!$G$151:$G$162,E$33) -> 3691.461248 | F253: =INDEX(Prop2021DistTar!$G$151:$G$162,F$33) -> 881.765136 | G253: =INDEX(Prop2021DistTar!$G$151:$G$162,G$33) -> 722.800356 | H253: =INDEX(Prop2021DistTar!$G$151:$G$162,H$33) -> 882.362376 | I253: =INDEX(Prop2021DistTar!$G$151:$G$162,I$33) -> 594.149456 | J253: =INDEX(Prop2021DistTar!$G$151:$G$162,J$33) -> 3977.80196 | K253: =INDEX(Prop2021DistTar!$G$151:$G$162,K$33) -> 1893.388608 | L253: =INDEX(Prop2021DistTar!$G$151:$G$162,L$33) -> 0 | M253: =INDEX(Prop2021DistTar!$G$151:$G$162,M$33) -> 8312.64505 | N253: =INDEX(Prop2021DistTar!$G$151:$G$162,N$33) -> 7668.140664
B255: Revenue | C255: Total
B256: =B251 -> Existing (1 Jan - 31 Dec): Tariff L- Multinet Non-Residential | C256: =SUM(C251:N251) -> 32407.53417
B257: =B253 -> Proposed (1 Jan-31 Dec): Tariff L- Multinet Non-Residential | C257: =SUM(C253:N253) -> 32602.90964
B259: Average price movement | C259: =IF(C257=0,"",C257/C256) -> 1.006028705
B261: =IF(C259="","",IF(C259<=$C$13,"REBALANCING CONTROL COMPLIANT","REBALANCING CONTROL BREACHED")) -> REBALANCING CONTROL COMPLIANT
B265: =Prop2021DistTar!B163 -> Tariff D - Multinet South Gippsland
C266: 1 | D266: 2
B267: Distribution tariff | C267: DemBlk1 | D267: DemBlk2
B268: ="Existing: "&Prop2021DistTar!C163 -> Existing: Tariff D - Multinet South Gippsland | C268: =INDEX(Prop2021DistTar!$E$164:$E$165,C266) -> 643.1957 | D268: =INDEX(Prop2021DistTar!$E$164:$E$165,D266) -> 109.4277
B269: ="Proposed: "&B265 -> Proposed: Tariff D - Multinet South Gippsland | C269: =INDEX(Prop2021DistTar!$D$164:$D$165,C266) -> 647.0819 | D269: =INDEX(Prop2021DistTar!$D$164:$D$165,D266) -> 110.0889
B271: Distribution volumes (actual) | C271: DemBlk1 | D271: DemBlk2
B272: =B268 -> Existing: Tariff D - Multinet South Gippsland | C272: =INDEX(Prop2021DistTar!$F$164:$F$165,C$266) -> 100 | D272: =INDEX(Prop2021DistTar!$F$164:$F$165,D$266) -> 67.34
B273: =B269 -> Proposed: Tariff D - Multinet South Gippsland | C273: =INDEX(Prop2021DistTar!$F$164:$F$165,C$266) -> 100 | D273: =INDEX(Prop2021DistTar!$F$164:$F$165,D$266) -> 67.34
B275: Distribution revenue | C275: DemBlk1 | D275: DemBlk2
B276: =B272 -> Existing: Tariff D - Multinet South Gippsland | C276: =INDEX(Prop2021DistTar!$H$164:$H$165,C266) -> 64319.57 | D276: =INDEX(Prop2021DistTar!$H$164:$H$165,D266) -> 7368.861318
B277: =B273 -> Proposed: Tariff D - Multinet South Gippsland | C277: =INDEX(Prop2021DistTar!$G$164:$G$165,C266) -> 64708.19 | D277: =INDEX(Prop2021DistTar!$G$164:$G$165,D266) -> 7413.386526
B279: Revenue | C279: Total
B280: =B276 -> Existing: Tariff D - Multinet South Gippsland | C280: =SUM(C276:D276) -> 71688.43132
B281: =B277 -> Proposed: Tariff D - Multinet South Gippsland | C281: =SUM(C277:D277) -> 72121.57653
B283: Average price movement | C283: =IF(C281=0,"",C281/C280) -> 1.006042052
B285: =IF(C283="","",IF(C283<=$C$13,"REBALANCING CONTROL COMPLIANT","REBALANCING CONTROL BREACHED")) -> REBALANCING CONTROL COMPLIANT

Sheet ARS
A1: ="Tariff Approval - "&'Model update'!B3 -> Tariff Approval - MultiNet
A3: Ancillary Reference Services (Exc GST)
B5: ='Model update'!$B$8 -> 2020 | C5: ='Model update'!$B$5 -> 2021
A6: Meter Investigation – High Account Investigation Between the hours of 8am and 4pm on a Business Day | B6: 151.09 | C6: =ROUND(B6*(1+'Model update'!$B$30),2) -> 150.56
A7: Meter Disconnection – Use of locks & plugs Between the hours of 8am and 4pm on a Business Day | B7: 52.92 | C7: =ROUND(B7*(1+'Model update'!$B$30),2) -> 52.74
A8: Meter Removal – Various Between the hours of 8am and 4pm on a Business Day | B8: 63.23 | C8: =ROUND(B8*(1+'Model update'!$B$30),2) -> 63.01
A9: Reconnect Between the hours of 8am and 4pm on a Business Day | B9: 44.62 | C9: =ROUND(B9*(1+'Model update'!$B$30),2) -> 44.46
A10: Special Meter Reads Between the hours of 8am and 4pm on a Business Day | B10: 6.78 | C10: =ROUND(B10*(1+'Model update'!$B$30),2) -> 6.76
A11: Installation of a second service valve in a pit and disconnect gas supply – paved (without traffic Mgt) | B11: 3372.92 | C11: =ROUND(B11*(1+'Model update'!$B$30),2) -> 3361.17
A12: Installation of a second service valve in a pit and disconnect gas supply – paved (with traffic Mgt) | B12: 4179.69 | C12: =ROUND(B12*(1+'Model update'!$B$30),2) -> 4165.13
A13: Installation of a second service valve in a pit and disconnect gas supply – unpaved (without traffic Mgt) | B13: 1600.89 | C13: =ROUND(B13*(1+'Model update'!$B$30),2) -> 1595.31
A14: Installation of a second service valve in a pit and disconnect gas supply – unpaved (with traffic Mgt) | B14: 2205.97 | C14: =ROUND(B14*(1+'Model update'!$B$30),2) -> 2198.28
A16: Note: Formula is as per AA2018-22, Part B, section 2, p9 : ART = ARTt-1 * (1+CPIt)
